{"text_format":"3","workbook":"xlsx","n_sheets":6,"sheets":["Enrollment Dashboard","Readme","Data","Fields","Calculations","PSW_Sheet"],"not_rendered":{"charts":3,"defined_names":24},"cells_cut":9,"read":"whole","date_system":"1900"}

{"sheet":"Enrollment Dashboard","index":0,"n_rows":28,"n_cols":35,"rows_kept":28,"merged":[[1,2,1,30],[3,2,3,30],[5,4,5,7],[6,4,6,7],[7,4,7,7],[8,4,8,7],[9,4,9,7],[10,4,10,7],[11,4,11,7],[12,4,12,7],[13,4,13,7],[16,2,16,30]]}
[]
[null,null,"College Enrollment Dashboard"]
[]
[null,null,"Yearly Enrollment Distribution by Colleges"]
[{"$nulls":34},5]
[{"$nulls":4},"Architecture"]
[{"$nulls":4},"Arts & Sciences"]
[{"$nulls":4},"Business"]
[{"$nulls":4},"Education"]
[{"$nulls":4},"Engineering"]
[{"$nulls":4},"Journalism"]
[{"$nulls":4},"Law"]
[{"$nulls":4},"Music"]
[{"$nulls":4},"All"]
[]
[]
[null,null,"College Enrollment Distribution by Years"]
[{"$nulls":34},2]
[{"$nulls":4},"1999"]
[{"$nulls":4},"2000"]
[{"$nulls":4},"2001"]
[{"$nulls":4},"2002"]
[{"$nulls":4},"2003"]
[{"$nulls":4},"2004"]
[{"$nulls":4},"2005"]
[{"$nulls":4},"2006"]
[{"$nulls":4},"2007"]
[{"$nulls":4},"All"]

{"sheet":"Readme","index":1,"n_rows":21,"n_cols":4,"rows_kept":21}
[]
[]
[{"$nulls":3},"Follow the steps to enable your online Dashboard."]
[null,null,"1)","This template contains sample data for college enrollments by year, colleges and departments."]
[{"$nulls":3},"If your data type fits, you can just edit \"Data\" and \"Fields\" sheets."]
[{"$nulls":3},"However, it is suggested to create your own dashboard file and follow the further steps to create your online dashboard."]
[null,null,"2)","Visit the site below:"]
[{"$nulls":3},"http://www.spreadsheetweb.com/getting_started.htm"]
[{"$nulls":3},"You will only need the username and password to create your online invoice form."]
[null,null,"3)","Visit the site below:"]
[{"$nulls":3},"https://www4.spreadsheetweb.com/SpreadsheetWEB//"]
[{"$nulls":3},"Login to page with your new account information."]
[null,null,"4)","Click \"Add Web Application\" to upload this file. Your online dashboard will be created automatically."]
[{"$nulls":3},"You can simply use the dashboard from that link or place it on your website."]
[null,null,">>","Your online dashboard will look like:"]
[{"$nulls":3},"https://www4.spreadsheetweb.com/SpreadSheetWEB/Output.aspx?ApplicationId=b40ef3fa-5aa6-4b50-9562-f41ccb3ef74c"]
[null,null,">>","In order to see more online applications created with PSW you can check the link below:"]
[{"$nulls":3},"http://www.spreadsheetweb.com/demos.htm"]
[]
[]
[{"$nulls":3},"Copyright (c) 2009 Pagos, Inc., http://www.pagos.com/"]

{"sheet":"Data","index":2,"n_rows":1376,"n_cols":7,"rows_kept":1376}
[]
[null,"Year","College","Department","Degree","Class","Enrollment"]
[null,1999,"Architecture","Arch/Planning","UG","Lower",50]
[null,1999,"Architecture","Arch/Planning","UG","Upper",96]
[null,2000,"Architecture","Arch/Planning","UG","Lower",74]
[null,2000,"Architecture","Arch/Planning","UG","Upper",66]
[null,2001,"Architecture","Arch/Planning","UG","Lower",64]
[null,2001,"Architecture","Arch/Planning","UG","Upper",106]
[null,2002,"Architecture","Arch/Planning","UG","Lower",64]
[null,2002,"Architecture","Arch/Planning","UG","Upper",138]
[null,2003,"Architecture","Arch/Planning","UG","Lower",76]
[null,2003,"Architecture","Arch/Planning","UG","Upper",146]
[null,2004,"Architecture","Arch/Planning","UG","Lower",92]
[null,2004,"Architecture","Arch/Planning","UG","Upper",144]
[null,2005,"Architecture","Arch/Planning","UG","Lower",28]
[null,2005,"Architecture","Arch/Planning","UG","Upper",54]
[null,2006,"Architecture","Arch/Planning","UG","Lower",24]
[null,2006,"Architecture","Arch/Planning","UG","Upper",116]
[null,2007,"Architecture","Arch/Planning","UG","Lower",154]
[null,2007,"Architecture","Arch/Planning","UG","Upper",96]
[null,1999,"Arts & Sciences","Arts & Sciences Admin","Grad","Grad",5]
[null,1999,"Arts & Sciences","A&S AH Pgm/Cntr","UG","Upper",5]
[null,1999,"Arts & Sciences","A&S SS Pgm/Cntr","UG","Lower",14]
[null,1999,"Arts & Sciences","A&S SS Pgm/Cntr","UG","Upper",12]
[null,1999,"Arts & Sciences","Anthropology","Grad","Grad",38]
[null,1999,"Arts & Sciences","Anthropology","UG","Lower",37]
[null,1999,"Arts & Sciences","Anthropology","UG","Upper",28]
[null,1999,"Arts & Sciences","Applied Math","Grad","Grad",39]
[null,1999,"Arts & Sciences","Applied Math","UG","Lower",37]
[null,1999,"Arts & Sciences","Applied Math","UG","Upper",24]
[null,1999,"Arts & Sciences","Art/Art History","Grad","Grad",32]
[null,1999,"Arts & Sciences","Art/Art History","UG","Lower",17]
[null,1999,"Arts & Sciences","Art/Art History","UG","Upper",21]
[null,1999,"Arts & Sciences","Astro Plnt Sci","Grad","Grad",42]
[null,1999,"Arts & Sciences","Astro Plnt Sci","UG","Lower",31]
[null,1999,"Arts & Sciences","Astro Plnt Sci","UG","Upper",11]
[null,1999,"Arts & Sciences","Atms Ocean Sci","Grad","Grad",25]
[null,1999,"Arts & Sciences","Atms Ocean Sci","UG","Lower",16]
[null,1999,"Arts & Sciences","Atms Ocean Sci","UG","Upper",23]
[null,1999,"Arts & Sciences","Biology-Ecol/Ev","Grad","Grad",50]
[null,1999,"Arts & Sciences","Biology-Ecol/Ev","UG","Lower",34]
[null,1999,"Arts & Sciences","Biology-Ecol/Ev","UG","Upper",43]
[null,1999,"Arts & Sciences","Biology-MCD","Grad","Grad",11]
[null,1999,"Arts & Sciences","Biology-MCD","UG","Lower",19]
[null,1999,"Arts & Sciences","Biology-MCD","UG","Upper",18]
[null,1999,"Arts & Sciences","Chem/Biochem","Grad","Grad",16]
[null,1999,"Arts & Sciences","Chem/Biochem","UG","Lower",32]
[null,1999,"Arts & Sciences","Chem/Biochem","UG","Upper",35]
[null,1999,"Arts & Sciences","Classics","Grad","Grad",29]
[null,1999,"Arts & Sciences","Classics","UG","Lower",16]
[null,1999,"Arts & Sciences","Classics","UG","Upper",16]
[null,1999,"Arts & Sciences","Communication","Grad","Grad",26]
[null,1999,"Arts & Sciences","Communication","UG","Lower",20]
[null,1999,"Arts & Sciences","Communication","UG","Upper",17]
[null,1999,"Arts & Sciences","Comp Lit/Human","Grad","Grad",24]
[null,1999,"Arts & Sciences","Comp Lit/Human","UG","Lower",27]
[null,1999,"Arts & Sciences","Comp Lit/Human","UG","Upper",50]
[null,1999,"Arts & Sciences","E Asian Lng/Civ","Grad","Grad",20]
[null,1999,"Arts & Sciences","E Asian Lng/Civ","UG","Lower",38]
[null,1999,"Arts & Sciences","E Asian Lng/Civ","UG","Upper",27]
[null,1999,"Arts & Sciences","Economics","Grad","Grad",16]
[null,1999,"Arts & Sciences","Economics","UG","Lower",34]
[null,1999,"Arts & Sciences","Economics","UG","Upper",29]
[null,1999,"Arts & Sciences","English","Grad","Grad",18]
[null,1999,"Arts & Sciences","English","UG","Lower",23]
[null,1999,"Arts & Sciences","English","UG","Upper",50]
[null,1999,"Arts & Sciences","Envirn Studies","UG","Upper",1]
[null,1999,"Arts & Sciences","Ethnic Studies","UG","Lower",22]
[null,1999,"Arts & Sciences","Ethnic Studies","UG","Upper",24]
[null,1999,"Arts & Sciences","Film Studies","UG","Lower",14]
[null,1999,"Arts & Sciences","Film Studies","UG","Upper",17]
[null,1999,"Arts & Sciences","French/Italian","Grad","Grad",18]
[null,1999,"Arts & Sciences","French/Italian","UG","Lower",40]
[null,1999,"Arts & Sciences","French/Italian","UG","Upper",37]
[null,1999,"Arts & Sciences","Geography","Grad","Grad",12]
[null,1999,"Arts & Sciences","Geography","UG","Lower",34]
[null,1999,"Arts & Sciences","Geography","UG","Upper",17]
[null,1999,"Arts & Sciences","Geology","Grad","Grad",12]
[null,1999,"Arts & Sciences","Geology","UG","Lower",33]
[null,1999,"Arts & Sciences","Geology","UG","Upper",26]
[null,1999,"Arts & Sciences","German/Slavic","Grad","Grad",18]
[null,1999,"Arts & Sciences","German/Slavic","UG","Lower",23]
[null,1999,"Arts & Sciences","German/Slavic","UG","Upper",18]
[null,1999,"Arts & Sciences","History","Grad","Grad",12]
[null,1999,"Arts & Sciences","History","UG","Lower",58]
[null,1999,"Arts & Sciences","History","UG","Upper",36]
[null,1999,"Arts & Sciences","Honors Program","UG","Lower",16]
[null,1999,"Arts & Sciences","Honors Program","UG","Upper",26]
[null,1999,"Arts & Sciences","Int Physiology","Grad","Grad",34]
[null,1999,"Arts & Sciences","Int Physiology","UG","Lower",47]
[null,1999,"Arts & Sciences","Int Physiology","UG","Upper",16]
[null,1999,"Arts & Sciences","Intnl Affairs","UG","Lower",11]
[null,1999,"Arts & Sciences","Intnl Affairs","UG","Upper",22]
[null,1999,"Arts & Sciences","Linguistics","Grad","Grad",31]
[null,1999,"Arts & Sciences","Linguistics","UG","Lower",27]
[null,1999,"Arts & Sciences","Linguistics","UG","Upper",30]
[null,1999,"Arts & Sciences","Mathematics","Grad","Grad",12]
[null,1999,"Arts & Sciences","Mathematics","UG","Lower",30]
[null,1999,"Arts & Sciences","Mathematics","UG","Upper",25]
[null,1999,"Arts & Sciences","Philosophy","Grad","Grad",43]
[null,1999,"Arts & Sciences","Philosophy","UG","Lower",25]
[null,1999,"Arts & Sciences","Philosophy","UG","Upper",19]
[null,1999,"Arts & Sciences","Physics","Grad","Grad",17]
[null,1999,"Arts & Sciences","Physics","UG","Lower",87]
[null,1999,"Arts & Sciences","Physics","UG","Upper",16]
[null,1999,"Arts & Sciences","Political Sci","Grad","Grad",11]
[null,1999,"Arts & Sciences","Political Sci","UG","Lower",34]
[null,1999,"Arts & Sciences","Political Sci","UG","Upper",26]
[null,1999,"Arts & Sciences","Psychology","Grad","Grad",21]
[null,1999,"Arts & Sciences","Psychology","UG","Lower",27]
[null,1999,"Arts & Sciences","Psychology","UG","Upper",38]
[null,1999,"Arts & Sciences","Relig Studies","Grad","Grad",24]
[null,1999,"Arts & Sciences","Relig Studies","UG","Lower",20]
[null,1999,"Arts & Sciences","Relig Studies","UG","Upper",15]
[null,1999,"Arts & Sciences","Sociology","Grad","Grad",12]
[null,1999,"Arts & Sciences","Sociology","UG","Lower",22]
[null,1999,"Arts & Sciences","Sociology","UG","Upper",24]
[null,1999,"Arts & Sciences","Spanish/Port","Grad","Grad",35]
[null,1999,"Arts & Sciences","Spanish/Port","UG","Lower",27]
[null,1999,"Arts & Sciences","Spanish/Port","UG","Upper",22]
[null,1999,"Arts & Sciences","Spch/Lang/Hear","Grad","Grad",12]
[null,1999,"Arts & Sciences","Spch/Lang/Hear","UG","Lower",32]
[null,1999,"Arts & Sciences","Spch/Lang/Hear","UG","Upper",14]
[null,1999,"Arts & Sciences","Theatre/Dance","Grad","Grad",34]
[null,1999,"Arts & Sciences","Theatre/Dance","UG","Lower",22]
[null,1999,"Arts & Sciences","Theatre/Dance","UG","Upper",24]
[null,1999,"Arts & Sciences","Womens Studies","UG","Lower",14]
[null,1999,"Arts & Sciences","Womens Studies","UG","Upper",12]
[null,1999,"Arts & Sciences","Writing Program","UG","Lower",8]
[null,1999,"Arts & Sciences","Writing Program","UG","Upper",21]
[null,2000,"Arts & Sciences","Arts & Sciences Admin","Grad","Grad",1]
[null,2000,"Arts & Sciences","Arts & Sciences Admin","UG","Upper",10]
[null,2000,"Arts & Sciences","A&S AH Pgm/Cntr","UG","Lower",10]
[null,2000,"Arts & Sciences","A&S AH Pgm/Cntr","UG","Upper",7]
[null,2000,"Arts & Sciences","A&S SS Pgm/Cntr","UG","Lower",17]
[null,2000,"Arts & Sciences","A&S SS Pgm/Cntr","UG","Upper",1]
[null,2000,"Arts & Sciences","Anthropology","Grad","Grad",34]
[null,2000,"Arts & Sciences","Anthropology","UG","Lower",51]
[null,2000,"Arts & Sciences","Anthropology","UG","Upper",22]
[null,2000,"Arts & Sciences","Applied Math","Grad","Grad",36]
[null,2000,"Arts & Sciences","Applied Math","UG","Lower",31]
[null,2000,"Arts & Sciences","Applied Math","UG","Upper",27]
[null,2000,"Arts & Sciences","Art/Art History","Grad","Grad",30]
[null,2000,"Arts & Sciences","Art/Art History","UG","Lower",13]
[null,2000,"Arts & Sciences","Art/Art History","UG","Upper",18]
[null,2000,"Arts & Sciences","Astro Plnt Sci","Grad","Grad",34]
[null,2000,"Arts & Sciences","Astro Plnt Sci","UG","Lower",43]
[null,2000,"Arts & Sciences","Astro Plnt Sci","UG","Upper",38]
[null,2000,"Arts & Sciences","Atms Ocean Sci","Grad","Grad",36]
[null,2000,"Arts & Sciences","Atms Ocean Sci","UG","Lower",20]
[null,2000,"Arts & Sciences","Atms Ocean Sci","UG","Upper",16]
[null,2000,"Arts & Sciences","Biology-Ecol/Ev","Grad","Grad",11]
[null,2000,"Arts & Sciences","Biology-Ecol/Ev","UG","Lower",20]
[null,2000,"Arts & Sciences","Biology-Ecol/Ev","UG","Upper",42]
[null,2000,"Arts & Sciences","Biology-MCD","Grad","Grad",39]
[null,2000,"Arts & Sciences","Biology-MCD","UG","Lower",17]
[null,2000,"Arts & Sciences","Biology-MCD","UG","Upper",17]
[null,2000,"Arts & Sciences","Chem/Biochem","Grad","Grad",29]
[null,2000,"Arts & Sciences","Chem/Biochem","UG","Lower",29]
[null,2000,"Arts & Sciences","Chem/Biochem","UG","Upper",23]
[null,2000,"Arts & Sciences","Classics","Grad","Grad",17]
[null,2000,"Arts & Sciences","Classics","UG","Lower",16]
[null,2000,"Arts & Sciences","Classics","UG","Upper",12]
[null,2000,"Arts & Sciences","Communication","Grad","Grad",28]
[null,2000,"Arts & Sciences","Communication","UG","Lower",17]
[null,2000,"Arts & Sciences","Communication","UG","Upper",18]
[null,2000,"Arts & Sciences","Comp Lit/Human","Grad","Grad",23]
[null,2000,"Arts & Sciences","Comp Lit/Human","UG","Lower",30]
[null,2000,"Arts & Sciences","Comp Lit/Human","UG","Upper",11]
[null,2000,"Arts & Sciences","E Asian Lng/Civ","Grad","Grad",27]
[null,2000,"Arts & Sciences","E Asian Lng/Civ","UG","Lower",42]
[null,2000,"Arts & Sciences","E Asian Lng/Civ","UG","Upper",28]
[null,2000,"Arts & Sciences","Economics","Grad","Grad",17]
[null,2000,"Arts & Sciences","Economics","UG","Lower",30]
[null,2000,"Arts & Sciences","Economics","UG","Upper",33]
[null,2000,"Arts & Sciences","English","Grad","Grad",17]
[null,2000,"Arts & Sciences","English","UG","Lower",18]
[null,2000,"Arts & Sciences","English","UG","Upper",57]
[null,2000,"Arts & Sciences","Envirn Studies","UG","Upper",15]
[null,2000,"Arts & Sciences","Ethnic Studies","UG","Lower",18]
[null,2000,"Arts & Sciences","Ethnic Studies","UG","Upper",30]
[null,2000,"Arts & Sciences","Film Studies","UG","Lower",16]
[null,2000,"Arts & Sciences","Film Studies","UG","Upper",16]
[null,2000,"Arts & Sciences","French/Italian","Grad","Grad",19]
[null,2000,"Arts & Sciences","French/Italian","UG","Lower",19]
[null,2000,"Arts & Sciences","French/Italian","UG","Upper",11]
[null,2000,"Arts & Sciences","Geography","Grad","Grad",48]
[null,2000,"Arts & Sciences","Geography","UG","Lower",22]
[null,2000,"Arts & Sciences","Geography","UG","Upper",18]
[null,2000,"Arts & Sciences","Geology","Grad","Grad",48]
[null,2000,"Arts & Sciences","Geology","UG","Lower",24]
[null,2000,"Arts & Sciences","Geology","UG","Upper",19]
[null,2000,"Arts & Sciences","German/Slavic","Grad","Grad",13]
[null,2000,"Arts & Sciences","German/Slavic","UG","Lower",15]
[null,2000,"Arts & Sciences","German/Slavic","UG","Upper",19]
[null,2000,"Arts & Sciences","History","Grad","Grad",11]
[null,2000,"Arts & Sciences","History","UG","Lower",68]
[null,2000,"Arts & Sciences","History","UG","Upper",32]
[null,2000,"Arts & Sciences","Honors Program","UG","Lower",11]
[null,2000,"Arts & Sciences","Honors Program","UG","Upper",21]
[null,2000,"Arts & Sciences","Int Physiology","Grad","Grad",44]
[null,2000,"Arts & Sciences","Int Physiology","UG","Lower",23]
[null,2000,"Arts & Sciences","Int Physiology","UG","Upper",18]
[null,2000,"Arts & Sciences","Intnl Affairs","UG","Lower",11]
[null,2000,"Arts & Sciences","Intnl Affairs","UG","Upper",19]
[null,2000,"Arts & Sciences","Linguistics","Grad","Grad",24]
[null,2000,"Arts & Sciences","Linguistics","UG","Lower",43]
[null,2000,"Arts & Sciences","Linguistics","UG","Upper",27]
[null,2000,"Arts & Sciences","Mathematics","Grad","Grad",12]
[null,2000,"Arts & Sciences","Mathematics","UG","Lower",24]
[null,2000,"Arts & Sciences","Mathematics","UG","Upper",30]
[null,2000,"Arts & Sciences","Philosophy","Grad","Grad",45]
[null,2000,"Arts & Sciences","Philosophy","UG","Lower",33]
[null,2000,"Arts & Sciences","Philosophy","UG","Upper",17]
[null,2000,"Arts & Sciences","Physics","Grad","Grad",18]
[null,2000,"Arts & Sciences","Physics","UG","Lower",75]
[null,2000,"Arts & Sciences","Physics","UG","Upper",17]
[null,2000,"Arts & Sciences","Political Sci","Grad","Grad",11]
[null,2000,"Arts & Sciences","Political Sci","UG","Lower",26]
[null,2000,"Arts & Sciences","Political Sci","UG","Upper",17]
[null,2000,"Arts & Sciences","Psychology","Grad","Grad",19]
[null,2000,"Arts & Sciences","Psychology","UG","Lower",24]
[null,2000,"Arts & Sciences","Psychology","UG","Upper",40]
[null,2000,"Arts & Sciences","Relig Studies","Grad","Grad",24]
[null,2000,"Arts & Sciences","Relig Studies","UG","Lower",28]
[null,2000,"Arts & Sciences","Relig Studies","UG","Upper",12]
[null,2000,"Arts & Sciences","Sociology","Grad","Grad",12]
[null,2000,"Arts & Sciences","Sociology","UG","Lower",36]
[null,2000,"Arts & Sciences","Sociology","UG","Upper",17]
[null,2000,"Arts & Sciences","Spanish/Port","Grad","Grad",36]
[null,2000,"Arts & Sciences","Spanish/Port","UG","Lower",18]
[null,2000,"Arts & Sciences","Spanish/Port","UG","Upper",26]
[null,2000,"Arts & Sciences","Spch/Lang/Hear","Grad","Grad",11]
[null,2000,"Arts & Sciences","Spch/Lang/Hear","UG","Lower",41]
[null,2000,"Arts & Sciences","Spch/Lang/Hear","UG","Upper",11]
[null,2000,"Arts & Sciences","Theatre/Dance","Grad","Grad",35]
[null,2000,"Arts & Sciences","Theatre/Dance","UG","Lower",24]
[null,2000,"Arts & Sciences","Theatre/Dance","UG","Upper",26]
[null,2000,"Arts & Sciences","Womens Studies","Grad","Grad",12]
[null,2000,"Arts & Sciences","Womens Studies","UG","Lower",16]
[null,2000,"Arts & Sciences","Womens Studies","UG","Upper",14]
[null,2000,"Arts & Sciences","Writing Program","UG","Upper",8]
[null,2001,"Arts & Sciences","Arts & Sciences Admin","Grad","Grad",8]
[null,2001,"Arts & Sciences","Arts & Sciences Admin","UG","Lower",12]
[null,2001,"Arts & Sciences","Arts & Sciences Admin","UG","Upper",5]
[null,2001,"Arts & Sciences","A&S AH Pgm/Cntr","UG","Lower",19]
[null,2001,"Arts & Sciences","A&S AH Pgm/Cntr","UG","Upper",4]
[null,2001,"Arts & Sciences","A&S SS Pgm/Cntr","UG","Lower",26]
[null,2001,"Arts & Sciences","A&S SS Pgm/Cntr","UG","Upper",8]
[null,2001,"Arts & Sciences","Anthropology","Grad","Grad",33]
[null,2001,"Arts & Sciences","Anthropology","UG","Lower",46]
[null,2001,"Arts & Sciences","Anthropology","UG","Upper",25]
[null,2001,"Arts & Sciences","Applied Math","Grad","Grad",42]
[null,2001,"Arts & Sciences","Applied Math","UG","Lower",20]
[null,2001,"Arts & Sciences","Applied Math","UG","Upper",37]
[null,2001,"Arts & Sciences","Art/Art History","Grad","Grad",28]
[null,2001,"Arts & Sciences","Art/Art History","UG","Lower",50]
[null,2001,"Arts & Sciences","Art/Art History","UG","Upper",18]
[null,2001,"Arts & Sciences","Astro Plnt Sci","Grad","Grad",34]
[null,2001,"Arts & Sciences","Astro Plnt Sci","UG","Lower",56]
[null,2001,"Arts & Sciences","Astro Plnt Sci","UG","Upper",22]
[null,2001,"Arts & Sciences","Atms Ocean Sci","Grad","Grad",28]
[null,2001,"Arts & Sciences","Atms Ocean Sci","UG","Lower",26]
[null,2001,"Arts & Sciences","Atms Ocean Sci","UG","Upper",34]
[null,2001,"Arts & Sciences","Biology-Ecol/Ev","Grad","Grad",43]
[null,2001,"Arts & Sciences","Biology-Ecol/Ev","UG","Lower",26]
[null,2001,"Arts & Sciences","Biology-Ecol/Ev","UG","Upper",48]
[null,2001,"Arts & Sciences","Biology-MCD","Grad","Grad",42]
[null,2001,"Arts & Sciences","Biology-MCD","UG","Lower",22]
[null,2001,"Arts & Sciences","Biology-MCD","UG","Upper",28]
[null,2001,"Arts & Sciences","Chem/Biochem","Grad","Grad",21]
[null,2001,"Arts & Sciences","Chem/Biochem","UG","Lower",22]
[null,2001,"Arts & Sciences","Chem/Biochem","UG","Upper",31]
[null,2001,"Arts & Sciences","Classics","Grad","Grad",26]
[null,2001,"Arts & Sciences","Classics","UG","Lower",27]
[null,2001,"Arts & Sciences","Classics","UG","Upper",14]
[null,2001,"Arts & Sciences","Communication","Grad","Grad",31]
[null,2001,"Arts & Sciences","Communication","UG","Lower",11]
[null,2001,"Arts & Sciences","Communication","UG","Upper",18]
[null,2001,"Arts & Sciences","Comp Lit/Human","Grad","Grad",20]
[null,2001,"Arts & Sciences","Comp Lit/Human","UG","Lower",28]
[null,2001,"Arts & Sciences","Comp Lit/Human","UG","Upper",12]
[null,2001,"Arts & Sciences","E Asian Lng/Civ","Grad","Grad",19]
[null,2001,"Arts & Sciences","E Asian Lng/Civ","UG","Lower",40]
[null,2001,"Arts & Sciences","E Asian Lng/Civ","UG","Upper",25]
[null,2001,"Arts & Sciences","Economics","Grad","Grad",20]
[null,2001,"Arts & Sciences","Economics","UG","Lower",40]
[null,2001,"Arts & Sciences","Economics","UG","Upper",39]
[null,2001,"Arts & Sciences","English","Grad","Grad",17]
[null,2001,"Arts & Sciences","English","UG","Lower",18]
[null,2001,"Arts & Sciences","English","UG","Upper",40]
[null,2001,"Arts & Sciences","Envirn Studies","UG","Upper",19]
[null,2001,"Arts & Sciences","Ethnic Studies","UG","Lower",19]
[null,2001,"Arts & Sciences","Ethnic Studies","UG","Upper",26]
[null,2001,"Arts & Sciences","Film Studies","UG","Lower",37]
[null,2001,"Arts & Sciences","Film Studies","UG","Upper",18]
[null,2001,"Arts & Sciences","French/Italian","Grad","Grad",26]
[null,2001,"Arts & Sciences","French/Italian","UG","Lower",11]
[null,2001,"Arts & Sciences","French/Italian","UG","Upper",11]
[null,2001,"Arts & Sciences","Geography","Grad","Grad",13]
[null,2001,"Arts & Sciences","Geography","UG","Lower",48]
[null,2001,"Arts & Sciences","Geography","UG","Upper",19]
[null,2001,"Arts & Sciences","Geology","Grad","Grad",38]
[null,2001,"Arts & Sciences","Geology","UG","Lower",26]
[null,2001,"Arts & Sciences","Geology","UG","Upper",20]
[null,2001,"Arts & Sciences","German/Slavic","Grad","Grad",24]
[null,2001,"Arts & Sciences","German/Slavic","UG","Lower",24]
[null,2001,"Arts & Sciences","German/Slavic","UG","Upper",20]
[null,2001,"Arts & Sciences","History","Grad","Grad",12]
[null,2001,"Arts & Sciences","History","UG","Lower",60]
[null,2001,"Arts & Sciences","History","UG","Upper",32]
[null,2001,"Arts & Sciences","Honors Program","UG","Lower",19]
[null,2001,"Arts & Sciences","Honors Program","UG","Upper",6]
[null,2001,"Arts & Sciences","Int Physiology","Grad","Grad",33]
[null,2001,"Arts & Sciences","Int Physiology","UG","Lower",11]
[null,2001,"Arts & Sciences","Int Physiology","UG","Upper",17]
[null,2001,"Arts & Sciences","Intnl Affairs","UG","Lower",12]
[null,2001,"Arts & Sciences","Intnl Affairs","UG","Upper",21]
[null,2001,"Arts & Sciences","Linguistics","Grad","Grad",29]
[null,2001,"Arts & Sciences","Linguistics","UG","Lower",15]
[null,2001,"Arts & Sciences","Linguistics","UG","Upper",30]
[null,2001,"Arts & Sciences","Mathematics","Grad","Grad",12]
[null,2001,"Arts & Sciences","Mathematics","UG","Lower",27]
[null,2001,"Arts & Sciences","Mathematics","UG","Upper",28]
[null,2001,"Arts & Sciences","Philosophy","Grad","Grad",42]
[null,2001,"Arts & Sciences","Philosophy","UG","Lower",28]
[null,2001,"Arts & Sciences","Philosophy","UG","Upper",27]
[null,2001,"Arts & Sciences","Physics","Grad","Grad",18]
[null,2001,"Arts & Sciences","Physics","UG","Lower",85]
[null,2001,"Arts & Sciences","Physics","UG","Upper",17]
[null,2001,"Arts & Sciences","Political Sci","Grad","Grad",12]
[null,2001,"Arts & Sciences","Political Sci","UG","Lower",35]
[null,2001,"Arts & Sciences","Political Sci","UG","Upper",29]
[null,2001,"Arts & Sciences","Psychology","Grad","Grad",20]
[null,2001,"Arts & Sciences","Psychology","UG","Lower",23]
[null,2001,"Arts & Sciences","Psychology","UG","Upper",35]
[null,2001,"Arts & Sciences","Relig Studies","Grad","Grad",27]
[null,2001,"Arts & Sciences","Relig Studies","UG","Lower",29]
[null,2001,"Arts & Sciences","Relig Studies","UG","Upper",17]
[null,2001,"Arts & Sciences","Sociology","Grad","Grad",50]
[null,2001,"Arts & Sciences","Sociology","UG","Lower",39]
[null,2001,"Arts & Sciences","Sociology","UG","Upper",18]
[null,2001,"Arts & Sciences","Spanish/Port","Grad","Grad",34]
[null,2001,"Arts & Sciences","Spanish/Port","UG","Lower",10]
[null,2001,"Arts & Sciences","Spanish/Port","UG","Upper",21]
[null,2001,"Arts & Sciences","Spch/Lang/Hear","Grad","Grad",37]
[null,2001,"Arts & Sciences","Spch/Lang/Hear","UG","Lower",50]
[null,2001,"Arts & Sciences","Spch/Lang/Hear","UG","Upper",27]
[null,2001,"Arts & Sciences","Theatre/Dance","Grad","Grad",43]
[null,2001,"Arts & Sciences","Theatre/Dance","UG","Lower",30]
[null,2001,"Arts & Sciences","Theatre/Dance","UG","Upper",25]
[null,2001,"Arts & Sciences","Womens Studies","Grad","Grad",5]
[null,2001,"Arts & Sciences","Womens Studies","UG","Lower",13]
[null,2001,"Arts & Sciences","Womens Studies","UG","Upper",11]
[null,2001,"Arts & Sciences","Writing Program","UG","Upper",8]
[null,2002,"Arts & Sciences","Arts & Sciences Admin","Grad","Grad",12]
[null,2002,"Arts & Sciences","Arts & Sciences Admin","UG","Lower",4]
[null,2002,"Arts & Sciences","Arts & Sciences Admin","UG","Upper",6]
[null,2002,"Arts & Sciences","A&S AH Pgm/Cntr","UG","Upper",7]
[null,2002,"Arts & Sciences","A&S SS Pgm/Cntr","UG","Lower",16]
[null,2002,"Arts & Sciences","A&S SS Pgm/Cntr","UG","Upper",2]
[null,2002,"Arts & Sciences","Anthropology","Grad","Grad",34]
[null,2002,"Arts & Sciences","Anthropology","UG","Lower",42]
[null,2002,"Arts & Sciences","Anthropology","UG","Upper",23]
[null,2002,"Arts & Sciences","Applied Math","Grad","Grad",46]
[null,2002,"Arts & Sciences","Applied Math","UG","Lower",17]
[null,2002,"Arts & Sciences","Applied Math","UG","Upper",21]
[null,2002,"Arts & Sciences","Art/Art History","Grad","Grad",30]
[null,2002,"Arts & Sciences","Art/Art History","UG","Lower",25]
[null,2002,"Arts & Sciences","Art/Art History","UG","Upper",21]
[null,2002,"Arts & Sciences","Astro Plnt Sci","Grad","Grad",35]
[null,2002,"Arts & Sciences","Astro Plnt Sci","UG","Lower",29]
[null,2002,"Arts & Sciences","Astro Plnt Sci","UG","Upper",46]
[null,2002,"Arts & Sciences","Atms Ocean Sci","Grad","Grad",40]
[null,2002,"Arts & Sciences","Atms Ocean Sci","UG","Lower",20]
[null,2002,"Arts & Sciences","Atms Ocean Sci","UG","Upper",19]
[null,2002,"Arts & Sciences","Biology-Ecol/Ev","Grad","Grad",11]
[null,2002,"Arts & Sciences","Biology-Ecol/Ev","UG","Lower",24]
[null,2002,"Arts & Sciences","Biology-Ecol/Ev","UG","Upper",47]
[null,2002,"Arts & Sciences","Biology-MCD","Grad","Grad",39]
[null,2002,"Arts & Sciences","Biology-MCD","UG","Lower",18]
[null,2002,"Arts & Sciences","Biology-MCD","UG","Upper",16]
[null,2002,"Arts & Sciences","Chem/Biochem","Grad","Grad",28]
[null,2002,"Arts & Sciences","Chem/Biochem","UG","Lower",19]
[null,2002,"Arts & Sciences","Chem/Biochem","UG","Upper",31]
[null,2002,"Arts & Sciences","Classics","Grad","Grad",30]
[null,2002,"Arts & Sciences","Classics","UG","Lower",22]
[null,2002,"Arts & Sciences","Classics","UG","Upper",19]
[null,2002,"Arts & Sciences","Communication","Grad","Grad",45]
[null,2002,"Arts & Sciences","Communication","UG","Lower",11]
[null,2002,"Arts & Sciences","Communication","UG","Upper",16]
[null,2002,"Arts & Sciences","Comp Lit/Human","Grad","Grad",22]
[null,2002,"Arts & Sciences","Comp Lit/Human","UG","Lower",30]
[null,2002,"Arts & Sciences","Comp Lit/Human","UG","Upper",48]
[null,2002,"Arts & Sciences","E Asian Lng/Civ","Grad","Grad",16]
[null,2002,"Arts & Sciences","E Asian Lng/Civ","UG","Lower",41]
[null,2002,"Arts & Sciences","E Asian Lng/Civ","UG","Upper",30]
[null,2002,"Arts & Sciences","Economics","Grad","Grad",20]
[null,2002,"Arts & Sciences","Economics","UG","Lower",45]
[null,2002,"Arts & Sciences","Economics","UG","Upper",38]
[null,2002,"Arts & Sciences","English","Grad","Grad",18]
[null,2002,"Arts & Sciences","English","UG","Lower",17]
[null,2002,"Arts & Sciences","English","UG","Upper",54]
[null,2002,"Arts & Sciences","Envirn Studies","Grad","Grad",8]
[null,2002,"Arts & Sciences","Envirn Studies","UG","Upper",28]
[null,2002,"Arts & Sciences","Ethnic Studies","UG","Lower",20]
[null,2002,"Arts & Sciences","Ethnic Studies","UG","Upper",28]
[null,2002,"Arts & Sciences","Film Studies","UG","Lower",11]
[null,2002,"Arts & Sciences","Film Studies","UG","Upper",20]
[null,2002,"Arts & Sciences","French/Italian","Grad","Grad",26]
[null,2002,"Arts & Sciences","French/Italian","UG","Lower",39]
[null,2002,"Arts & Sciences","French/Italian","UG","Upper",12]
[null,2002,"Arts & Sciences","Geography","Grad","Grad",13]
[null,2002,"Arts & Sciences","Geography","UG","Lower",35]
[null,2002,"Arts & Sciences","Geography","UG","Upper",26]
[null,2002,"Arts & Sciences","Geology","Grad","Grad",49]
[null,2002,"Arts & Sciences","Geology","UG","Lower",33]
[null,2002,"Arts & Sciences","Geology","UG","Upper",21]
[null,2002,"Arts & Sciences","German/Slavic","Grad","Grad",23]
[null,2002,"Arts & Sciences","German/Slavic","UG","Lower",16]
[null,2002,"Arts & Sciences","German/Slavic","UG","Upper",21]
[null,2002,"Arts & Sciences","History","Grad","Grad",11]
[null,2002,"Arts & Sciences","History","UG","Lower",54]
[null,2002,"Arts & Sciences","History","UG","Upper",34]
[null,2002,"Arts & Sciences","Honors Program","UG","Lower",13]
[null,2002,"Arts & Sciences","Honors Program","UG","Upper",9]
[null,2002,"Arts & Sciences","Int Physiology","Grad","Grad",36]
[null,2002,"Arts & Sciences","Int Physiology","UG","Lower",28]
[null,2002,"Arts & Sciences","Int Physiology","UG","Upper",17]
[null,2002,"Arts & Sciences","Intnl Affairs","UG","Lower",13]
[null,2002,"Arts & Sciences","Intnl Affairs","UG","Upper",24]
[null,2002,"Arts & Sciences","Linguistics","Grad","Grad",36]
[null,2002,"Arts & Sciences","Linguistics","UG","Lower",23]
[null,2002,"Arts & Sciences","Linguistics","UG","Upper",49]
[null,2002,"Arts & Sciences","Mathematics","Grad","Grad",12]
[null,2002,"Arts & Sciences","Mathematics","UG","Lower",19]
[null,2002,"Arts & Sciences","Mathematics","UG","Upper",26]
[null,2002,"Arts & Sciences","Philosophy","Grad","Grad",11]
[null,2002,"Arts & Sciences","Philosophy","UG","Lower",24]
[null,2002,"Arts & Sciences","Philosophy","UG","Upper",16]
[null,2002,"Arts & Sciences","Physics","Grad","Grad",24]
[null,2002,"Arts & Sciences","Physics","UG","Lower",86]
[null,2002,"Arts & Sciences","Physics","UG","Upper",20]
[null,2002,"Arts & Sciences","Political Sci","Grad","Grad",14]
[null,2002,"Arts & Sciences","Political Sci","UG","Lower",49]
[null,2002,"Arts & Sciences","Political Sci","UG","Upper",25]
[null,2002,"Arts & Sciences","Psychology","Grad","Grad",19]
[null,2002,"Arts & Sciences","Psychology","UG","Lower",25]
[null,2002,"Arts & Sciences","Psychology","UG","Upper",46]
[null,2002,"Arts & Sciences","Relig Studies","Grad","Grad",29]
[null,2002,"Arts & Sciences","Relig Studies","UG","Lower",15]
[null,2002,"Arts & Sciences","Relig Studies","UG","Upper",17]
[null,2002,"Arts & Sciences","Sociology","Grad","Grad",40]
[null,2002,"Arts & Sciences","Sociology","UG","Lower",38]
[null,2002,"Arts & Sciences","Sociology","UG","Upper",16]
[null,2002,"Arts & Sciences","Spanish/Port","Grad","Grad",34]
[null,2002,"Arts & Sciences","Spanish/Port","UG","Upper",18]
[null,2002,"Arts & Sciences","Spch/Lang/Hear","Grad","Grad",11]
[null,2002,"Arts & Sciences","Spch/Lang/Hear","UG","Lower",44]
[null,2002,"Arts & Sciences","Spch/Lang/Hear","UG","Upper",41]
[null,2002,"Arts & Sciences","Theatre/Dance","Grad","Grad",43]
[null,2002,"Arts & Sciences","Theatre/Dance","UG","Lower",18]
[null,2002,"Arts & Sciences","Theatre/Dance","UG","Upper",11]
[null,2002,"Arts & Sciences","Womens Studies","UG","Lower",36]
[null,2002,"Arts & Sciences","Womens Studies","UG","Upper",12]
[null,2002,"Arts & Sciences","Writing Program","UG","Upper",7]
[null,2003,"Arts & Sciences","Arts & Sciences Admin","Grad","Grad",18]
[null,2003,"Arts & Sciences","Arts & Sciences Admin","UG","Upper",5]
[null,2003,"Arts & Sciences","A&S AH Pgm/Cntr","UG","Lower",17]
[null,2003,"Arts & Sciences","A&S AH Pgm/Cntr","UG","Upper",7]
[null,2003,"Arts & Sciences","A&S SS Pgm/Cntr","Grad","Grad",1]
[null,2003,"Arts & Sciences","A&S SS Pgm/Cntr","UG","Lower",14]
[null,2003,"Arts & Sciences","Anthropology","Grad","Grad",35]
[null,2003,"Arts & Sciences","Anthropology","UG","Lower",38]
[null,2003,"Arts & Sciences","Anthropology","UG","Upper",24]
[null,2003,"Arts & Sciences","Applied Math","Grad","Grad",48]
[null,2003,"Arts & Sciences","Applied Math","UG","Lower",17]
[null,2003,"Arts & Sciences","Applied Math","UG","Upper",11]
[null,2003,"Arts & Sciences","Art/Art History","Grad","Grad",40]
[null,2003,"Arts & Sciences","Art/Art History","UG","Lower",26]
[null,2003,"Arts & Sciences","Art/Art History","UG","Upper",22]
[null,2003,"Arts & Sciences","Astro Plnt Sci","Grad","Grad",32]
[null,2003,"Arts & Sciences","Astro Plnt Sci","UG","Lower",48]
[null,2003,"Arts & Sciences","Astro Plnt Sci","UG","Upper",12]
[null,2003,"Arts & Sciences","Atms Ocean Sci","Grad","Grad",30]
[null,2003,"Arts & Sciences","Atms Ocean Sci","UG","Upper",33]
[null,2003,"Arts & Sciences","Biology-Ecol/Ev","Grad","Grad",11]
[null,2003,"Arts & Sciences","Biology-Ecol/Ev","UG","Lower",28]
[null,2003,"Arts & Sciences","Biology-Ecol/Ev","UG","Upper",51]
[null,2003,"Arts & Sciences","Biology-MCD","Grad","Grad",44]
[null,2003,"Arts & Sciences","Biology-MCD","UG","Lower",19]
[null,2003,"Arts & Sciences","Biology-MCD","UG","Upper",29]
[null,2003,"Arts & Sciences","Chem/Biochem","Grad","Grad",25]
[null,2003,"Arts & Sciences","Chem/Biochem","UG","Lower",18]
[null,2003,"Arts & Sciences","Chem/Biochem","UG","Upper",44]
[null,2003,"Arts & Sciences","Classics","Grad","Grad",21]
[null,2003,"Arts & Sciences","Classics","UG","Lower",16]
[null,2003,"Arts & Sciences","Classics","UG","Upper",16]
[null,2003,"Arts & Sciences","Communication","Grad","Grad",45]
[null,2003,"Arts & Sciences","Communication","UG","Lower",27]
[null,2003,"Arts & Sciences","Communication","UG","Upper",24]
[null,2003,"Arts & Sciences","Comp Lit/Human","Grad","Grad",18]
[null,2003,"Arts & Sciences","Comp Lit/Human","UG","Lower",29]
[null,2003,"Arts & Sciences","Comp Lit/Human","UG","Upper",11]
[null,2003,"Arts & Sciences","E Asian Lng/Civ","Grad","Grad",19]
[null,2003,"Arts & Sciences","E Asian Lng/Civ","UG","Lower",16]
[null,2003,"Arts & Sciences","E Asian Lng/Civ","UG","Upper",23]
[null,2003,"Arts & Sciences","Economics","Grad","Grad",19]
[null,2003,"Arts & Sciences","Economics","UG","Lower",23]
[null,2003,"Arts & Sciences","Economics","UG","Upper",41]
[null,2003,"Arts & Sciences","English","Grad","Grad",21]
[null,2003,"Arts & Sciences","English","UG","Lower",20]
[null,2003,"Arts & Sciences","English","UG","Upper",46]
[null,2003,"Arts & Sciences","Envirn Studies","Grad","Grad",21]
[null,2003,"Arts & Sciences","Envirn Studies","UG","Upper",20]
[null,2003,"Arts & Sciences","Ethnic Studies","UG","Lower",20]
[null,2003,"Arts & Sciences","Ethnic Studies","UG","Upper",22]
[null,2003,"Arts & Sciences","Film Studies","UG","Lower",37]
[null,2003,"Arts & Sciences","Film Studies","UG","Upper",17]
[null,2003,"Arts & Sciences","French/Italian","Grad","Grad",20]
[null,2003,"Arts & Sciences","French/Italian","UG","Lower",20]
[null,2003,"Arts & Sciences","French/Italian","UG","Upper",16]
[null,2003,"Arts & Sciences","Geography","Grad","Grad",11]
[null,2003,"Arts & Sciences","Geography","UG","Lower",39]
[null,2003,"Arts & Sciences","Geography","UG","Upper",20]
[null,2003,"Arts & Sciences","Geology","Grad","Grad",48]
[null,2003,"Arts & Sciences","Geology","UG","Lower",36]
[null,2003,"Arts & Sciences","Geology","UG","Upper",19]
[null,2003,"Arts & Sciences","German/Slavic","Grad","Grad",18]
[null,2003,"Arts & Sciences","German/Slavic","UG","Lower",15]
[null,2003,"Arts & Sciences","German/Slavic","UG","Upper",17]
[null,2003,"Arts & Sciences","History","Grad","Grad",42]
[null,2003,"Arts & Sciences","History","UG","Lower",56]
[null,2003,"Arts & Sciences","History","UG","Upper",33]
[null,2003,"Arts & Sciences","Honors Program","UG","Lower",18]
[null,2003,"Arts & Sciences","Honors Program","UG","Upper",8]
[null,2003,"Arts & Sciences","Int Physiology","Grad","Grad",37]
[null,2003,"Arts & Sciences","Int Physiology","UG","Lower",32]
[null,2003,"Arts & Sciences","Int Physiology","UG","Upper",27]
[null,2003,"Arts & Sciences","Intnl Affairs","UG","Lower",17]
[null,2003,"Arts & Sciences","Intnl Affairs","UG","Upper",16]
[null,2003,"Arts & Sciences","Linguistics","Grad","Grad",49]
[null,2003,"Arts & Sciences","Linguistics","UG","Lower",13]
[null,2003,"Arts & Sciences","Linguistics","UG","Upper",26]
[null,2003,"Arts & Sciences","Mathematics","Grad","Grad",11]
[null,2003,"Arts & Sciences","Mathematics","UG","Lower",26]
[null,2003,"Arts & Sciences","Mathematics","UG","Upper",30]
[null,2003,"Arts & Sciences","Philosophy","Grad","Grad",44]
[null,2003,"Arts & Sciences","Philosophy","UG","Lower",28]
[null,2003,"Arts & Sciences","Philosophy","UG","Upper",16]
[null,2003,"Arts & Sciences","Physics","Grad","Grad",23]
[null,2003,"Arts & Sciences","Physics","UG","Lower",94]
[null,2003,"Arts & Sciences","Physics","UG","Upper",25]
[null,2003,"Arts & Sciences","Political Sci","Grad","Grad",13]
[null,2003,"Arts & Sciences","Political Sci","UG","Lower",45]
[null,2003,"Arts & Sciences","Political Sci","UG","Upper",30]
[null,2003,"Arts & Sciences","Psychology","Grad","Grad",16]
[null,2003,"Arts & Sciences","Psychology","UG","Lower",22]
[null,2003,"Arts & Sciences","Psychology","UG","Upper",37]
[null,2003,"Arts & Sciences","Relig Studies","Grad","Grad",29]
[null,2003,"Arts & Sciences","Relig Studies","UG","Lower",24]
[null,2003,"Arts & Sciences","Relig Studies","UG","Upper",14]
[null,2003,"Arts & Sciences","Sociology","Grad","Grad",50]
[null,2003,"Arts & Sciences","Sociology","UG","Lower",45]
[null,2003,"Arts & Sciences","Sociology","UG","Upper",23]
[null,2003,"Arts & Sciences","Spanish/Port","Grad","Grad",36]
[null,2003,"Arts & Sciences","Spanish/Port","UG","Upper",18]
[null,2003,"Arts & Sciences","Spch/Lang/Hear","Grad","Grad",12]
[null,2003,"Arts & Sciences","Spch/Lang/Hear","UG","Lower",29]
[null,2003,"Arts & Sciences","Spch/Lang/Hear","UG","Upper",11]
[null,2003,"Arts & Sciences","Theatre/Dance","Grad","Grad",39]
[null,2003,"Arts & Sciences","Theatre/Dance","UG","Lower",20]
[null,2003,"Arts & Sciences","Theatre/Dance","UG","Upper",13]
[null,2003,"Arts & Sciences","Womens Studies","Grad","Grad",6]
[null,2003,"Arts & Sciences","Womens Studies","UG","Lower",33]
[null,2003,"Arts & Sciences","Womens Studies","UG","Upper",14]
[null,2003,"Arts & Sciences","Writing Program","UG","Lower",7]
[null,2004,"Arts & Sciences","Arts & Sciences Admin","Grad","Grad",1]
[null,2004,"Arts & Sciences","Arts & Sciences Admin","UG","Upper",22]
[null,2004,"Arts & Sciences","A&S AH Pgm/Cntr","UG","Lower",29]
[null,2004,"Arts & Sciences","A&S AH Pgm/Cntr","UG","Upper",8]
[null,2004,"Arts & Sciences","A&S SS Pgm/Cntr","UG","Lower",21]
[null,2004,"Arts & Sciences","A&S SS Pgm/Cntr","UG","Upper",1]
[null,2004,"Arts & Sciences","Anthropology","Grad","Grad",38]
[null,2004,"Arts & Sciences","Anthropology","UG","Lower",33]
[null,2004,"Arts & Sciences","Anthropology","UG","Upper",27]
[null,2004,"Arts & Sciences","Applied Math","Grad","Grad",13]
[null,2004,"Arts & Sciences","Applied Math","UG","Lower",21]
[null,2004,"Arts & Sciences","Applied Math","UG","Upper",42]
[null,2004,"Arts & Sciences","Art/Art History","Grad","Grad",36]
[null,2004,"Arts & Sciences","Art/Art History","UG","Lower",18]
[null,2004,"Arts & Sciences","Art/Art History","UG","Upper",22]
[null,2004,"Arts & Sciences","Astro Plnt Sci","Grad","Grad",42]
[null,2004,"Arts & Sciences","Astro Plnt Sci","UG","Lower",50]
[null,2004,"Arts & Sciences","Astro Plnt Sci","UG","Upper",13]
[null,2004,"Arts & Sciences","Atms Ocean Sci","Grad","Grad",28]
[null,2004,"Arts & Sciences","Atms Ocean Sci","UG","Lower",18]
[null,2004,"Arts & Sciences","Atms Ocean Sci","UG","Upper",25]
[null,2004,"Arts & Sciences","Biology-Ecol/Ev","Grad","Grad",46]
[null,2004,"Arts & Sciences","Biology-Ecol/Ev","UG","Lower",29]
[null,2004,"Arts & Sciences","Biology-Ecol/Ev","UG","Upper",45]
[null,2004,"Arts & Sciences","Biology-MCD","Grad","Grad",42]
[null,2004,"Arts & Sciences","Biology-MCD","UG","Lower",25]
[null,2004,"Arts & Sciences","Biology-MCD","UG","Upper",18]
[null,2004,"Arts & Sciences","Chem/Biochem","Grad","Grad",30]
[null,2004,"Arts & Sciences","Chem/Biochem","UG","Lower",25]
[null,2004,"Arts & Sciences","Chem/Biochem","UG","Upper",46]
[null,2004,"Arts & Sciences","Classics","Grad","Grad",22]
[null,2004,"Arts & Sciences","Classics","UG","Lower",17]
[null,2004,"Arts & Sciences","Classics","UG","Upper",15]
[null,2004,"Arts & Sciences","Communication","Grad","Grad",49]
[null,2004,"Arts & Sciences","Communication","UG","Lower",27]
[null,2004,"Arts & Sciences","Communication","UG","Upper",21]
[null,2004,"Arts & Sciences","Comp Lit/Human","Grad","Grad",19]
[null,2004,"Arts & Sciences","Comp Lit/Human","UG","Lower",17]
[null,2004,"Arts & Sciences","Comp Lit/Human","UG","Upper",13]
[null,2004,"Arts & Sciences","E Asian Lng/Civ","Grad","Grad",19]
[null,2004,"Arts & Sciences","E Asian Lng/Civ","UG","Lower",12]
[null,2004,"Arts & Sciences","E Asian Lng/Civ","UG","Upper",28]
[null,2004,"Arts & Sciences","Economics","Grad","Grad",19]
[null,2004,"Arts & Sciences","Economics","UG","Lower",27]
[null,2004,"Arts & Sciences","Economics","UG","Upper",44]
[null,2004,"Arts & Sciences","English","Grad","Grad",21]
[null,2004,"Arts & Sciences","English","UG","Lower",30]
[null,2004,"Arts & Sciences","English","UG","Upper",49]
[null,2004,"Arts & Sciences","Envirn Studies","Grad","Grad",20]
[null,2004,"Arts & Sciences","Envirn Studies","UG","Lower",49]
[null,2004,"Arts & Sciences","Envirn Studies","UG","Upper",24]
[null,2004,"Arts & Sciences","Ethnic Studies","UG","Lower",26]
[null,2004,"Arts & Sciences","Ethnic Studies","UG","Upper",27]
[null,2004,"Arts & Sciences","Film Studies","UG","Lower",20]
[null,2004,"Arts & Sciences","Film Studies","UG","Upper",16]
[null,2004,"Arts & Sciences","French/Italian","Grad","Grad",20]
[null,2004,"Arts & Sciences","French/Italian","UG","Lower",46]
[null,2004,"Arts & Sciences","French/Italian","UG","Upper",16]
[null,2004,"Arts & Sciences","Geography","Grad","Grad",12]
[null,2004,"Arts & Sciences","Geography","UG","Lower",52]
[null,2004,"Arts & Sciences","Geography","UG","Upper",21]
[null,2004,"Arts & Sciences","Geology","Grad","Grad",45]
[null,2004,"Arts & Sciences","Geology","UG","Lower",35]
[null,2004,"Arts & Sciences","Geology","UG","Upper",27]
[null,2004,"Arts & Sciences","German/Slavic","Grad","Grad",13]
[null,2004,"Arts & Sciences","German/Slavic","UG","Lower",19]
[null,2004,"Arts & Sciences","German/Slavic","UG","Upper",21]
[null,2004,"Arts & Sciences","History","Grad","Grad",44]
[null,2004,"Arts & Sciences","History","UG","Lower",54]
[null,2004,"Arts & Sciences","History","UG","Upper",36]
[null,2004,"Arts & Sciences","Honors Program","UG","Lower",26]
[null,2004,"Arts & Sciences","Honors Program","UG","Upper",2]
[null,2004,"Arts & Sciences","Int Physiology","Grad","Grad",34]
[null,2004,"Arts & Sciences","Int Physiology","UG","Lower",23]
[null,2004,"Arts & Sciences","Int Physiology","UG","Upper",19]
[null,2004,"Arts & Sciences","Intnl Affairs","UG","Lower",26]
[null,2004,"Arts & Sciences","Intnl Affairs","UG","Upper",21]
[null,2004,"Arts & Sciences","Linguistics","Grad","Grad",40]
[null,2004,"Arts & Sciences","Linguistics","UG","Lower",39]
[null,2004,"Arts & Sciences","Linguistics","UG","Upper",47]
[null,2004,"Arts & Sciences","Mathematics","Grad","Grad",13]
[null,2004,"Arts & Sciences","Mathematics","UG","Lower",26]
[null,2004,"Arts & Sciences","Mathematics","UG","Upper",18]
[null,2004,"Arts & Sciences","Philosophy","Grad","Grad",39]
[null,2004,"Arts & Sciences","Philosophy","UG","Lower",32]
[null,2004,"Arts & Sciences","Philosophy","UG","Upper",23]
[null,2004,"Arts & Sciences","Physics","Grad","Grad",26]
[null,2004,"Arts & Sciences","Physics","UG","Lower",111]
[null,2004,"Arts & Sciences","Physics","UG","Upper",26]
[null,2004,"Arts & Sciences","Political Sci","Grad","Grad",14]
[null,2004,"Arts & Sciences","Political Sci","UG","Lower",61]
[null,2004,"Arts & Sciences","Political Sci","UG","Upper",17]
[null,2004,"Arts & Sciences","Psychology","Grad","Grad",19]
[null,2004,"Arts & Sciences","Psychology","UG","Lower",24]
[null,2004,"Arts & Sciences","Psychology","UG","Upper",46]
[null,2004,"Arts & Sciences","Relig Studies","Grad","Grad",30]
[null,2004,"Arts & Sciences","Relig Studies","UG","Lower",26]
[null,2004,"Arts & Sciences","Relig Studies","UG","Upper",28]
[null,2004,"Arts & Sciences","Sociology","Grad","Grad",11]
[null,2004,"Arts & Sciences","Sociology","UG","Lower",65]
[null,2004,"Arts & Sciences","Sociology","UG","Upper",37]
[null,2004,"Arts & Sciences","Spanish/Port","Grad","Grad",37]
[null,2004,"Arts & Sciences","Spanish/Port","UG","Upper",21]
[null,2004,"Arts & Sciences","Spch/Lang/Hear","Grad","Grad",46]
[null,2004,"Arts & Sciences","Spch/Lang/Hear","UG","Lower",12]
[null,2004,"Arts & Sciences","Spch/Lang/Hear","UG","Upper",16]
[null,2004,"Arts & Sciences","Theatre/Dance","Grad","Grad",32]
[null,2004,"Arts & Sciences","Theatre/Dance","UG","Lower",21]
[null,2004,"Arts & Sciences","Theatre/Dance","UG","Upper",23]
[null,2004,"Arts & Sciences","Womens Studies","Grad","Grad",5]
[null,2004,"Arts & Sciences","Womens Studies","UG","Lower",1]
[null,2004,"Arts & Sciences","Womens Studies","UG","Upper",48]
[null,2005,"Arts & Sciences","Arts & Sciences Admin","Grad","Grad",1]
[null,2005,"Arts & Sciences","Arts & Sciences Admin","UG","Upper",17]
[null,2005,"Arts & Sciences","A&S AH Pgm/Cntr","UG","Lower",18]
[null,2005,"Arts & Sciences","A&S AH Pgm/Cntr","UG","Upper",10]
[null,2005,"Arts & Sciences","A&S SS Pgm/Cntr","UG","Lower",11]
[null,2005,"Arts & Sciences","A&S SS Pgm/Cntr","UG","Upper",1]
[null,2005,"Arts & Sciences","Anthropology","Grad","Grad",36]
[null,2005,"Arts & Sciences","Anthropology","UG","Lower",34]
[null,2005,"Arts & Sciences","Anthropology","UG","Upper",26]
[null,2005,"Arts & Sciences","Applied Math","Grad","Grad",11]
[null,2005,"Arts & Sciences","Applied Math","UG","Lower",29]
[null,2005,"Arts & Sciences","Applied Math","UG","Upper",27]
[null,2005,"Arts & Sciences","Art/Art History","Grad","Grad",44]
[null,2005,"Arts & Sciences","Art/Art History","UG","Lower",29]
[null,2005,"Arts & Sciences","Art/Art History","UG","Upper",20]
[null,2005,"Arts & Sciences","Astro Plnt Sci","Grad","Grad",38]
[null,2005,"Arts & Sciences","Astro Plnt Sci","UG","Lower",38]
[null,2005,"Arts & Sciences","Astro Plnt Sci","UG","Upper",14]
[null,2005,"Arts & Sciences","Atms Ocean Sci","Grad","Grad",31]
[null,2005,"Arts & Sciences","Atms Ocean Sci","UG","Lower",27]
[null,2005,"Arts & Sciences","Atms Ocean Sci","UG","Upper",16]
[null,2005,"Arts & Sciences","Biology-Ecol/Ev","Grad","Grad",41]
[null,2005,"Arts & Sciences","Biology-Ecol/Ev","UG","Lower",28]
[null,2005,"Arts & Sciences","Biology-Ecol/Ev","UG","Upper",27]
[null,2005,"Arts & Sciences","Biology-MCD","Grad","Grad",46]
[null,2005,"Arts & Sciences","Biology-MCD","UG","Lower",29]
[null,2005,"Arts & Sciences","Biology-MCD","UG","Upper",17]
[null,2005,"Arts & Sciences","Chem/Biochem","Grad","Grad",16]
[null,2005,"Arts & Sciences","Chem/Biochem","UG","Lower",55]
[null,2005,"Arts & Sciences","Chem/Biochem","UG","Upper",46]
[null,2005,"Arts & Sciences","Classics","Grad","Grad",18]
[null,2005,"Arts & Sciences","Classics","UG","Lower",29]
[null,2005,"Arts & Sciences","Classics","UG","Upper",24]
[null,2005,"Arts & Sciences","Communication","Grad","Grad",45]
[null,2005,"Arts & Sciences","Communication","UG","Lower",18]
[null,2005,"Arts & Sciences","Communication","UG","Upper",21]
[null,2005,"Arts & Sciences","Comp Lit/Human","Grad","Grad",17]
[null,2005,"Arts & Sciences","Comp Lit/Human","UG","Lower",13]
[null,2005,"Arts & Sciences","Comp Lit/Human","UG","Upper",15]
[null,2005,"Arts & Sciences","E Asian Lng/Civ","Grad","Grad",21]
[null,2005,"Arts & Sciences","E Asian Lng/Civ","UG","Lower",11]
[null,2005,"Arts & Sciences","E Asian Lng/Civ","UG","Upper",30]
[null,2005,"Arts & Sciences","Economics","Grad","Grad",20]
[null,2005,"Arts & Sciences","Economics","UG","Lower",22]
[null,2005,"Arts & Sciences","Economics","UG","Upper",37]
[null,2005,"Arts & Sciences","English","Grad","Grad",20]
[null,2005,"Arts & Sciences","English","UG","Lower",20]
[null,2005,"Arts & Sciences","English","UG","Upper",53]
[null,2005,"Arts & Sciences","Envirn Studies","Grad","Grad",25]
[null,2005,"Arts & Sciences","Envirn Studies","UG","Lower",21]
[null,2005,"Arts & Sciences","Envirn Studies","UG","Upper",20]
[null,2005,"Arts & Sciences","Ethnic Studies","UG","Lower",18]
[null,2005,"Arts & Sciences","Ethnic Studies","UG","Upper",30]
[null,2005,"Arts & Sciences","Film Studies","UG","Lower",18]
[null,2005,"Arts & Sciences","Film Studies","UG","Upper",18]
[null,2005,"Arts & Sciences","French/Italian","Grad","Grad",20]
[null,2005,"Arts & Sciences","French/Italian","UG","Lower",14]
[null,2005,"Arts & Sciences","French/Italian","UG","Upper",17]
[null,2005,"Arts & Sciences","Geography","Grad","Grad",11]
[null,2005,"Arts & Sciences","Geography","UG","Lower",38]
[null,2005,"Arts & Sciences","Geography","UG","Upper",24]
[null,2005,"Arts & Sciences","Geology","Grad","Grad",49]
[null,2005,"Arts & Sciences","Geology","UG","Lower",38]
[null,2005,"Arts & Sciences","Geology","UG","Upper",17]
[null,2005,"Arts & Sciences","German/Slavic","Grad","Grad",18]
[null,2005,"Arts & Sciences","German/Slavic","UG","Lower",17]
[null,2005,"Arts & Sciences","German/Slavic","UG","Upper",25]
[null,2005,"Arts & Sciences","History","Grad","Grad",48]
[null,2005,"Arts & Sciences","History","UG","Lower",50]
[null,2005,"Arts & Sciences","History","UG","Upper",30]
[null,2005,"Arts & Sciences","Honors Program","UG","Lower",14]
[null,2005,"Arts & Sciences","Honors Program","UG","Upper",14]
[null,2005,"Arts & Sciences","Int Physiology","Grad","Grad",41]
[null,2005,"Arts & Sciences","Int Physiology","UG","Lower",17]
[null,2005,"Arts & Sciences","Int Physiology","UG","Upper",31]
[null,2005,"Arts & Sciences","Intnl Affairs","UG","Upper",17]
[null,2005,"Arts & Sciences","Linguistics","Grad","Grad",40]
[null,2005,"Arts & Sciences","Linguistics","UG","Lower",23]
[null,2005,"Arts & Sciences","Linguistics","UG","Upper",23]
[null,2005,"Arts & Sciences","Mathematics","Grad","Grad",15]
[null,2005,"Arts & Sciences","Mathematics","UG","Lower",17]
[null,2005,"Arts & Sciences","Mathematics","UG","Upper",17]
[null,2005,"Arts & Sciences","Philosophy","Grad","Grad",31]
[null,2005,"Arts & Sciences","Philosophy","UG","Lower",35]
[null,2005,"Arts & Sciences","Philosophy","UG","Upper",21]
[null,2005,"Arts & Sciences","Physics","Grad","Grad",26]
[null,2005,"Arts & Sciences","Physics","UG","Lower",111]
[null,2005,"Arts & Sciences","Physics","UG","Upper",26]
[null,2005,"Arts & Sciences","Political Sci","Grad","Grad",13]
[null,2005,"Arts & Sciences","Political Sci","UG","Lower",65]
[null,2005,"Arts & Sciences","Political Sci","UG","Upper",26]
[null,2005,"Arts & Sciences","Psychology","Grad","Grad",19]
[null,2005,"Arts & Sciences","Psychology","UG","Lower",18]
[null,2005,"Arts & Sciences","Psychology","UG","Upper",30]
[null,2005,"Arts & Sciences","Relig Studies","Grad","Grad",26]
[null,2005,"Arts & Sciences","Relig Studies","UG","Lower",17]
[null,2005,"Arts & Sciences","Relig Studies","UG","Upper",25]
[null,2005,"Arts & Sciences","Sociology","Grad","Grad",44]
[null,2005,"Arts & Sciences","Sociology","UG","Lower",49]
[null,2005,"Arts & Sciences","Sociology","UG","Upper",18]
[null,2005,"Arts & Sciences","Spanish/Port","Grad","Grad",40]
[null,2005,"Arts & Sciences","Spanish/Port","UG","Upper",22]
[null,2005,"Arts & Sciences","Spch/Lang/Hear","Grad","Grad",47]
[null,2005,"Arts & Sciences","Spch/Lang/Hear","UG","Lower",16]
[null,2005,"Arts & Sciences","Spch/Lang/Hear","UG","Upper",13]
[null,2005,"Arts & Sciences","Theatre/Dance","Grad","Grad",32]
[null,2005,"Arts & Sciences","Theatre/Dance","UG","Lower",27]
[null,2005,"Arts & Sciences","Theatre/Dance","UG","Upper",22]
[null,2005,"Arts & Sciences","Womens Studies","Grad","Grad",10]
[null,2005,"Arts & Sciences","Womens Studies","UG","Lower",1]
[null,2005,"Arts & Sciences","Womens Studies","UG","Upper",40]
[null,2005,"Arts & Sciences","Writing Program","UG","Lower",16]
[null,2005,"Arts & Sciences","Writing Program","UG","Upper",9]
[null,2006,"Arts & Sciences","Arts & Sciences Admin","UG","Lower",11]
[null,2006,"Arts & Sciences","Arts & Sciences Admin","UG","Upper",20]
[null,2006,"Arts & Sciences","A&S AH Pgm/Cntr","UG","Lower",24]
[null,2006,"Arts & Sciences","A&S AH Pgm/Cntr","UG","Upper",10]
[null,2006,"Arts & Sciences","A&S NS Pgm/Cntr","UG","Lower",1]
[null,2006,"Arts & Sciences","A&S SS Pgm/Cntr","UG","Lower",9]
[null,2006,"Arts & Sciences","Anthropology","Grad","Grad",41]
[null,2006,"Arts & Sciences","Anthropology","UG","Lower",33]
[null,2006,"Arts & Sciences","Anthropology","UG","Upper",19]
[null,2006,"Arts & Sciences","Applied Math","Grad","Grad",50]
[null,2006,"Arts & Sciences","Applied Math","UG","Lower",21]
[null,2006,"Arts & Sciences","Applied Math","UG","Upper",13]
[null,2006,"Arts & Sciences","Art/Art History","Grad","Grad",40]
[null,2006,"Arts & Sciences","Art/Art History","UG","Lower",29]
[null,2006,"Arts & Sciences","Art/Art History","UG","Upper",24]
[null,2006,"Arts & Sciences","Astro Plnt Sci","Grad","Grad",32]
[null,2006,"Arts & Sciences","Astro Plnt Sci","UG","Lower",30]
[null,2006,"Arts & Sciences","Astro Plnt Sci","UG","Upper",14]
[null,2006,"Arts & Sciences","Atms Ocean Sci","Grad","Grad",38]
[null,2006,"Arts & Sciences","Atms Ocean Sci","UG","Lower",19]
[null,2006,"Arts & Sciences","Atms Ocean Sci","UG","Upper",33]
[null,2006,"Arts & Sciences","Biology-Ecol/Ev","Grad","Grad",36]
[null,2006,"Arts & Sciences","Biology-Ecol/Ev","UG","Lower",38]
[null,2006,"Arts & Sciences","Biology-Ecol/Ev","UG","Upper",23]
[null,2006,"Arts & Sciences","Biology-MCD","Grad","Grad",12]
[null,2006,"Arts & Sciences","Biology-MCD","UG","Lower",29]
[null,2006,"Arts & Sciences","Biology-MCD","UG","Upper",22]
[null,2006,"Arts & Sciences","Chem/Biochem","Grad","Grad",30]
[null,2006,"Arts & Sciences","Chem/Biochem","UG","Lower",32]
[null,2006,"Arts & Sciences","Chem/Biochem","UG","Upper",36]
[null,2006,"Arts & Sciences","Classics","Grad","Grad",18]
[null,2006,"Arts & Sciences","Classics","UG","Lower",18]
[null,2006,"Arts & Sciences","Classics","UG","Upper",15]
[null,2006,"Arts & Sciences","Communication","Grad","Grad",11]
[null,2006,"Arts & Sciences","Communication","UG","Lower",20]
[null,2006,"Arts & Sciences","Communication","UG","Upper",17]
[null,2006,"Arts & Sciences","Comp Lit/Human","Grad","Grad",18]
[null,2006,"Arts & Sciences","Comp Lit/Human","UG","Lower",25]
[null,2006,"Arts & Sciences","Comp Lit/Human","UG","Upper",11]
[null,2006,"Arts & Sciences","E Asian Lng/Civ","Grad","Grad",16]
[null,2006,"Arts & Sciences","E Asian Lng/Civ","UG","Lower",35]
[null,2006,"Arts & Sciences","E Asian Lng/Civ","UG","Upper",27]
[null,2006,"Arts & Sciences","Economics","Grad","Grad",18]
[null,2006,"Arts & Sciences","Economics","UG","Lower",23]
[null,2006,"Arts & Sciences","Economics","UG","Upper",48]
[null,2006,"Arts & Sciences","English","Grad","Grad",18]
[null,2006,"Arts & Sciences","English","UG","Lower",14]
[null,2006,"Arts & Sciences","English","UG","Upper",31]
[null,2006,"Arts & Sciences","Envirn Studies","Grad","Grad",22]
[null,2006,"Arts & Sciences","Envirn Studies","UG","Lower",29]
[null,2006,"Arts & Sciences","Envirn Studies","UG","Upper",16]
[null,2006,"Arts & Sciences","Ethnic Studies","UG","Lower",17]
[null,2006,"Arts & Sciences","Ethnic Studies","UG","Upper",24]
[null,2006,"Arts & Sciences","Film Studies","UG","Lower",12]
[null,2006,"Arts & Sciences","Film Studies","UG","Upper",24]
[null,2006,"Arts & Sciences","French/Italian","Grad","Grad",23]
[null,2006,"Arts & Sciences","French/Italian","UG","Lower",26]
[null,2006,"Arts & Sciences","French/Italian","UG","Upper",14]
[null,2006,"Arts & Sciences","Geography","Grad","Grad",12]
[null,2006,"Arts & Sciences","Geography","UG","Lower",43]
[null,2006,"Arts & Sciences","Geography","UG","Upper",20]
[null,2006,"Arts & Sciences","Geology","Grad","Grad",11]
[null,2006,"Arts & Sciences","Geology","UG","Lower",42]
[null,2006,"Arts & Sciences","Geology","UG","Upper",17]
[null,2006,"Arts & Sciences","German/Slavic","Grad","Grad",21]
[null,2006,"Arts & Sciences","German/Slavic","UG","Lower",16]
[null,2006,"Arts & Sciences","German/Slavic","UG","Upper",29]
[null,2006,"Arts & Sciences","History","Grad","Grad",46]
[null,2006,"Arts & Sciences","History","UG","Lower",50]
[null,2006,"Arts & Sciences","History","UG","Upper",32]
[null,2006,"Arts & Sciences","Honors Program","UG","Lower",27]
[null,2006,"Arts & Sciences","Honors Program","UG","Upper",9]
[null,2006,"Arts & Sciences","Int Physiology","Grad","Grad",48]
[null,2006,"Arts & Sciences","Int Physiology","UG","Lower",19]
[null,2006,"Arts & Sciences","Int Physiology","UG","Upper",35]
[null,2006,"Arts & Sciences","Intnl Affairs","UG","Lower",20]
[null,2006,"Arts & Sciences","Intnl Affairs","UG","Upper",16]
[null,2006,"Arts & Sciences","Linguistics","Grad","Grad",11]
[null,2006,"Arts & Sciences","Linguistics","UG","Lower",23]
[null,2006,"Arts & Sciences","Linguistics","UG","Upper",20]
[null,2006,"Arts & Sciences","Mathematics","Grad","Grad",13]
[null,2006,"Arts & Sciences","Mathematics","UG","Lower",21]
[null,2006,"Arts & Sciences","Mathematics","UG","Upper",16]
[null,2006,"Arts & Sciences","Philosophy","Grad","Grad",30]
[null,2006,"Arts & Sciences","Philosophy","UG","Lower",21]
[null,2006,"Arts & Sciences","Philosophy","UG","Upper",25]
[null,2006,"Arts & Sciences","Physics","Grad","Grad",23]
[null,2006,"Arts & Sciences","Physics","UG","Lower",85]
[null,2006,"Arts & Sciences","Physics","UG","Upper",21]
[null,2006,"Arts & Sciences","Political Sci","Grad","Grad",16]
[null,2006,"Arts & Sciences","Political Sci","UG","Lower",55]
[null,2006,"Arts & Sciences","Political Sci","UG","Upper",23]
[null,2006,"Arts & Sciences","Psychology","Grad","Grad",18]
[null,2006,"Arts & Sciences","Psychology","UG","Lower",16]
[null,2006,"Arts & Sciences","Psychology","UG","Upper",24]
[null,2006,"Arts & Sciences","Relig Studies","Grad","Grad",19]
[null,2006,"Arts & Sciences","Relig Studies","UG","Lower",16]
[null,2006,"Arts & Sciences","Relig Studies","UG","Upper",20]
[null,2006,"Arts & Sciences","Sociology","Grad","Grad",11]
[null,2006,"Arts & Sciences","Sociology","UG","Lower",47]
[null,2006,"Arts & Sciences","Sociology","UG","Upper",25]
[null,2006,"Arts & Sciences","Spanish/Port","Grad","Grad",32]
[null,2006,"Arts & Sciences","Spanish/Port","UG","Upper",24]
[null,2006,"Arts & Sciences","Spch/Lang/Hear","Grad","Grad",12]
[null,2006,"Arts & Sciences","Spch/Lang/Hear","UG","Lower",30]
[null,2006,"Arts & Sciences","Spch/Lang/Hear","UG","Upper",13]
[null,2006,"Arts & Sciences","Theatre/Dance","Grad","Grad",33]
[null,2006,"Arts & Sciences","Theatre/Dance","UG","Lower",24]
[null,2006,"Arts & Sciences","Theatre/Dance","UG","Upper",14]
[null,2006,"Arts & Sciences","Womens Studies","Grad","Grad",10]
[null,2006,"Arts & Sciences","Womens Studies","UG","Lower",49]
[null,2006,"Arts & Sciences","Womens Studies","UG","Upper",13]
[null,2006,"Arts & Sciences","Writing Program","Grad","Grad",3]
[null,2006,"Arts & Sciences","Writing Program","UG","Lower",15]
[null,2006,"Arts & Sciences","Writing Program","UG","Upper",8]
[null,2007,"Arts & Sciences","Arts & Sciences Admin","Grad","Grad",1]
[null,2007,"Arts & Sciences","Arts & Sciences Admin","UG","Lower",6]
[null,2007,"Arts & Sciences","Arts & Sciences Admin","UG","Upper",20]
[null,2007,"Arts & Sciences","A&S AH Pgm/Cntr","UG","Lower",21]
[null,2007,"Arts & Sciences","A&S AH Pgm/Cntr","UG","Upper",12]
[null,2007,"Arts & Sciences","A&S SS Pgm/Cntr","UG","Lower",16]
[null,2007,"Arts & Sciences","A&S SS Pgm/Cntr","UG","Upper",1]
[null,2007,"Arts & Sciences","Anthropology","Grad","Grad",43]
[null,2007,"Arts & Sciences","Anthropology","UG","Lower",40]
[null,2007,"Arts & Sciences","Anthropology","UG","Upper",23]
[null,2007,"Arts & Sciences","Applied Math","Grad","Grad",11]
[null,2007,"Arts & Sciences","Applied Math","UG","Lower",30]
[null,2007,"Arts & Sciences","Applied Math","UG","Upper",49]
[null,2007,"Arts & Sciences","Art/Art History","Grad","Grad",34]
[null,2007,"Arts & Sciences","Art/Art History","UG","Lower",35]
[null,2007,"Arts & Sciences","Art/Art History","UG","Upper",20]
[null,2007,"Arts & Sciences","Astro Plnt Sci","Grad","Grad",49]
[null,2007,"Arts & Sciences","Astro Plnt Sci","UG","Lower",26]
[null,2007,"Arts & Sciences","Astro Plnt Sci","UG","Upper",14]
[null,2007,"Arts & Sciences","Atms Ocean Sci","Grad","Grad",41]
[null,2007,"Arts & Sciences","Atms Ocean Sci","UG","Lower",21]
[null,2007,"Arts & Sciences","Atms Ocean Sci","UG","Upper",31]
[null,2007,"Arts & Sciences","Biology-Ecol/Ev","Grad","Grad",33]
[null,2007,"Arts & Sciences","Biology-Ecol/Ev","UG","Lower",55]
[null,2007,"Arts & Sciences","Biology-Ecol/Ev","UG","Upper",20]
[null,2007,"Arts & Sciences","Biology-MCD","Grad","Grad",13]
[null,2007,"Arts & Sciences","Biology-MCD","UG","Lower",29]
[null,2007,"Arts & Sciences","Biology-MCD","UG","Upper",24]
[null,2007,"Arts & Sciences","Chem/Biochem","Grad","Grad",16]
[null,2007,"Arts & Sciences","Chem/Biochem","UG","Lower",31]
[null,2007,"Arts & Sciences","Chem/Biochem","UG","Upper",27]
[null,2007,"Arts & Sciences","Classics","Grad","Grad",16]
[null,2007,"Arts & Sciences","Classics","UG","Lower",17]
[null,2007,"Arts & Sciences","Classics","UG","Upper",15]
[null,2007,"Arts & Sciences","Communication","Grad","Grad",12]
[null,2007,"Arts & Sciences","Communication","UG","Lower",26]
[null,2007,"Arts & Sciences","Communication","UG","Upper",24]
[null,2007,"Arts & Sciences","Comp Lit/Human","Grad","Grad",19]
[null,2007,"Arts & Sciences","Comp Lit/Human","UG","Lower",17]
[null,2007,"Arts & Sciences","Comp Lit/Human","UG","Upper",43]
[null,2007,"Arts & Sciences","E Asian Lng/Civ","Grad","Grad",29]
[null,2007,"Arts & Sciences","E Asian Lng/Civ","UG","Lower",29]
[null,2007,"Arts & Sciences","E Asian Lng/Civ","UG","Upper",17]
[null,2007,"Arts & Sciences","Economics","Grad","Grad",17]
[null,2007,"Arts & Sciences","Economics","UG","Lower",24]
[null,2007,"Arts & Sciences","Economics","UG","Upper",42]
[null,2007,"Arts & Sciences","English","Grad","Grad",18]
[null,2007,"Arts & Sciences","English","UG","Lower",18]
[null,2007,"Arts & Sciences","English","UG","Upper",37]
[null,2007,"Arts & Sciences","Envirn Studies","Grad","Grad",23]
[null,2007,"Arts & Sciences","Envirn Studies","UG","Lower",16]
[null,2007,"Arts & Sciences","Envirn Studies","UG","Upper",17]
[null,2007,"Arts & Sciences","Ethnic Studies","UG","Lower",19]
[null,2007,"Arts & Sciences","Ethnic Studies","UG","Upper",21]
[null,2007,"Arts & Sciences","Film Studies","UG","Lower",16]
[null,2007,"Arts & Sciences","Film Studies","UG","Upper",20]
[null,2007,"Arts & Sciences","French/Italian","Grad","Grad",26]
[null,2007,"Arts & Sciences","French/Italian","UG","Lower",24]
[null,2007,"Arts & Sciences","French/Italian","UG","Upper",18]
[null,2007,"Arts & Sciences","Geography","Grad","Grad",12]
[null,2007,"Arts & Sciences","Geography","UG","Lower",33]
[null,2007,"Arts & Sciences","Geography","UG","Upper",19]
[null,2007,"Arts & Sciences","Geology","Grad","Grad",11]
[null,2007,"Arts & Sciences","Geology","UG","Lower",40]
[null,2007,"Arts & Sciences","Geology","UG","Upper",26]
[null,2007,"Arts & Sciences","German/Slavic","Grad","Grad",15]
[null,2007,"Arts & Sciences","German/Slavic","UG","Lower",23]
[null,2007,"Arts & Sciences","German/Slavic","UG","Upper",28]
[null,2007,"Arts & Sciences","History","Grad","Grad",42]
[null,2007,"Arts & Sciences","History","UG","Lower",54]
[null,2007,"Arts & Sciences","History","UG","Upper",31]
[null,2007,"Arts & Sciences","Honors Program","UG","Lower",17]
[null,2007,"Arts & Sciences","Honors Program","UG","Upper",14]
[null,2007,"Arts & Sciences","Int Physiology","Grad","Grad",36]
[null,2007,"Arts & Sciences","Int Physiology","UG","Lower",29]
[null,2007,"Arts & Sciences","Int Physiology","UG","Upper",42]
[null,2007,"Arts & Sciences","Intnl Affairs","UG","Lower",15]
[null,2007,"Arts & Sciences","Intnl Affairs","UG","Upper",21]
[null,2007,"Arts & Sciences","Linguistics","Grad","Grad",12]
[null,2007,"Arts & Sciences","Linguistics","UG","Lower",29]
[null,2007,"Arts & Sciences","Linguistics","UG","Upper",19]
[null,2007,"Arts & Sciences","Mathematics","Grad","Grad",14]
[null,2007,"Arts & Sciences","Mathematics","UG","Lower",27]
[null,2007,"Arts & Sciences","Mathematics","UG","Upper",19]
[null,2007,"Arts & Sciences","Philosophy","Grad","Grad",35]
[null,2007,"Arts & Sciences","Philosophy","UG","Lower",34]
[null,2007,"Arts & Sciences","Philosophy","UG","Upper",20]
[null,2007,"Arts & Sciences","Physics","Grad","Grad",29]
[null,2007,"Arts & Sciences","Physics","UG","Lower",83]
[null,2007,"Arts & Sciences","Physics","UG","Upper",27]
[null,2007,"Arts & Sciences","Political Sci","Grad","Grad",13]
[null,2007,"Arts & Sciences","Political Sci","UG","Lower",59]
[null,2007,"Arts & Sciences","Political Sci","UG","Upper",24]
[null,2007,"Arts & Sciences","Psychology","Grad","Grad",16]
[null,2007,"Arts & Sciences","Psychology","UG","Lower",19]
[null,2007,"Arts & Sciences","Psychology","UG","Upper",30]
[null,2007,"Arts & Sciences","Relig Studies","Grad","Grad",16]
[null,2007,"Arts & Sciences","Relig Studies","UG","Lower",20]
[null,2007,"Arts & Sciences","Relig Studies","UG","Upper",14]
[null,2007,"Arts & Sciences","Sociology","Grad","Grad",13]
[null,2007,"Arts & Sciences","Sociology","UG","Lower",36]
[null,2007,"Arts & Sciences","Sociology","UG","Upper",24]
[null,2007,"Arts & Sciences","Spanish/Port","Grad","Grad",41]
[null,2007,"Arts & Sciences","Spanish/Port","UG","Lower",8]
[null,2007,"Arts & Sciences","Spanish/Port","UG","Upper",27]
[null,2007,"Arts & Sciences","Spch/Lang/Hear","Grad","Grad",11]
[null,2007,"Arts & Sciences","Spch/Lang/Hear","UG","Lower",26]
[null,2007,"Arts & Sciences","Spch/Lang/Hear","UG","Upper",48]
[null,2007,"Arts & Sciences","Theatre/Dance","Grad","Grad",32]
[null,2007,"Arts & Sciences","Theatre/Dance","UG","Lower",25]
[null,2007,"Arts & Sciences","Theatre/Dance","UG","Upper",15]
[null,2007,"Arts & Sciences","Womens Studies","Grad","Grad",11]
[null,2007,"Arts & Sciences","Womens Studies","UG","Lower",40]
[null,2007,"Arts & Sciences","Womens Studies","UG","Upper",28]
[null,2007,"Arts & Sciences","Writing Program","UG","Lower",21]
[null,2007,"Arts & Sciences","Writing Program","UG","Upper",8]
[null,1999,"Business","Leeds Business","Grad","Grad",134]
[null,1999,"Business","Leeds Business","UG","Lower",210]
[null,1999,"Business","Leeds Business","UG","Upper",470]
[null,2000,"Business","Leeds Business","Grad","Grad",126]
[null,2000,"Business","Leeds Business","UG","Lower",132]
[null,2000,"Business","Leeds Business","UG","Upper",432]
[null,2001,"Business","Leeds Business","Grad","Grad",126]
[null,2001,"Business","Leeds Business","UG","Lower",94]
[null,2001,"Business","Leeds Business","UG","Upper",356]
[null,2002,"Business","Leeds Business","Grad","Grad",96]
[null,2002,"Business","Leeds Business","UG","Lower",20]
[null,2002,"Business","Leeds Business","UG","Upper",312]
[null,2003,"Business","Leeds Business","Grad","Grad",90]
[null,2003,"Business","Leeds Business","UG","Lower",10]
[null,2003,"Business","Leeds Business","UG","Upper",318]
[null,2004,"Business","Leeds Business","Grad","Grad",62]
[null,2004,"Business","Leeds Business","UG","Lower",48]
[null,2004,"Business","Leeds Business","UG","Upper",296]
[null,2005,"Business","Leeds Business","Grad","Grad",70]
[null,2005,"Business","Leeds Business","UG","Lower",40]
[null,2005,"Business","Leeds Business","UG","Upper",324]
[null,2006,"Business","Leeds Business","Grad","Grad",74]
[null,2006,"Business","Leeds Business","UG","Lower",40]
[null,2006,"Business","Leeds Business","UG","Upper",322]
[null,2007,"Business","Leeds Business","Grad","Grad",60]
[null,2007,"Business","Leeds Business","UG","Lower",18]
[null,2007,"Business","Leeds Business","UG","Upper",280]
[null,1999,"Education","Education","Grad","Grad",88]
[null,1999,"Education","Education","UG","Upper",108]
[null,2000,"Education","Education","Grad","Grad",80]
[null,2000,"Education","Education","UG","Upper",80]
[null,2001,"Education","Education","Grad","Grad",84]
[null,2001,"Education","Education","UG","Upper",62]
[null,2002,"Education","Education","Grad","Grad",88]
[null,2002,"Education","Education","UG","Upper",24]
[null,2003,"Education","Education","Grad","Grad",70]
[null,2003,"Education","Education","UG","Upper",34]
[null,2004,"Education","Education","Grad","Grad",78]
[null,2004,"Education","Education","UG","Upper",54]
[null,2005,"Education","Education","Grad","Grad",70]
[null,2005,"Education","Education","UG","Upper",50]
[null,2006,"Education","Education","Grad","Grad",74]
[null,2006,"Education","Education","UG","Upper",50]
[null,2007,"Education","Education","Grad","Grad",88]
[null,2007,"Education","Education","UG","Lower",2]
[null,2007,"Education","Education","UG","Upper",58]
[null,1999,"Engineering","Aerospace Eng","Grad","Grad",48]
[null,1999,"Engineering","Aerospace Eng","UG","Lower",48]
[null,1999,"Engineering","Aerospace Eng","UG","Upper",42]
[null,1999,"Engineering","Chem/Bio Eng","Grad","Grad",22]
[null,1999,"Engineering","Chem/Bio Eng","UG","Lower",50]
[null,1999,"Engineering","Chem/Bio Eng","UG","Upper",52]
[null,1999,"Engineering","Civ/Env/Arch En","Grad","Grad",54]
[null,1999,"Engineering","Civ/Env/Arch En","UG","Lower",22]
[null,1999,"Engineering","Civ/Env/Arch En","UG","Upper",174]
[null,1999,"Engineering","Computer Sci","Grad","Grad",56]
[null,1999,"Engineering","Computer Sci","UG","Lower",122]
[null,1999,"Engineering","Computer Sci","UG","Upper",64]
[null,1999,"Engineering","Elec/Comp Eng","Grad","Grad",48]
[null,1999,"Engineering","Elec/Comp Eng","UG","Lower",72]
[null,1999,"Engineering","Elec/Comp Eng","UG","Upper",132]
[null,1999,"Engineering","Eng Mgmnt Pgm","Grad","Grad",2]
[null,1999,"Engineering","Eng Mgmnt Pgm","UG","Upper",8]
[null,1999,"Engineering","Engin Admin","UG","Lower",44]
[null,1999,"Engineering","Herbst Humn Prg","UG","Lower",54]
[null,1999,"Engineering","Herbst Humn Prg","UG","Upper",14]
[null,1999,"Engineering","ITP","Grad","Grad",152]
[null,1999,"Engineering","Mechanical Eng","Grad","Grad",196]
[null,1999,"Engineering","Mechanical Eng","UG","Lower",182]
[null,1999,"Engineering","Mechanical Eng","UG","Upper",70]
[null,2000,"Engineering","Aerospace Eng","Grad","Grad",44]
[null,2000,"Engineering","Aerospace Eng","UG","Lower",44]
[null,2000,"Engineering","Aerospace Eng","UG","Upper",42]
[null,2000,"Engineering","Chem/Bio Eng","Grad","Grad",194]
[null,2000,"Engineering","Chem/Bio Eng","UG","Lower",42]
[null,2000,"Engineering","Chem/Bio Eng","UG","Upper",64]
[null,2000,"Engineering","Civ/Env/Arch En","Grad","Grad",62]
[null,2000,"Engineering","Civ/Env/Arch En","UG","Lower",150]
[null,2000,"Engineering","Civ/Env/Arch En","UG","Upper",170]
[null,2000,"Engineering","Computer Sci","Grad","Grad",60]
[null,2000,"Engineering","Computer Sci","UG","Lower",72]
[null,2000,"Engineering","Computer Sci","UG","Upper",46]
[null,2000,"Engineering","Elec/Comp Eng","Grad","Grad",52]
[null,2000,"Engineering","Elec/Comp Eng","UG","Lower",60]
[null,2000,"Engineering","Elec/Comp Eng","UG","Upper",134]
[null,2000,"Engineering","Eng Mgmnt Pgm","Grad","Grad",2]
[null,2000,"Engineering","Engin Admin","UG","Lower",42]
[null,2000,"Engineering","Environ Eng","UG","Lower",8]
[null,2000,"Engineering","Herbst Humn Prg","UG","Lower",44]
[null,2000,"Engineering","Herbst Humn Prg","UG","Upper",100]
[null,2000,"Engineering","ITP","Grad","Grad",36]
[null,2000,"Engineering","Mechanical Eng","Grad","Grad",26]
[null,2000,"Engineering","Mechanical Eng","UG","Lower",124]
[null,2000,"Engineering","Mechanical Eng","UG","Upper",76]
[null,2001,"Engineering","Aerospace Eng","Grad","Grad",40]
[null,2001,"Engineering","Aerospace Eng","UG","Lower",30]
[null,2001,"Engineering","Aerospace Eng","UG","Upper",46]
[null,2001,"Engineering","Chem/Bio Eng","Grad","Grad",192]
[null,2001,"Engineering","Chem/Bio Eng","UG","Lower",52]
[null,2001,"Engineering","Chem/Bio Eng","UG","Upper",54]
[null,2001,"Engineering","Civ/Env/Arch En","Grad","Grad",66]
[null,2001,"Engineering","Civ/Env/Arch En","UG","Lower",190]
[null,2001,"Engineering","Civ/Env/Arch En","UG","Upper",160]
[null,2001,"Engineering","Computer Sci","Grad","Grad",52]
[null,2001,"Engineering","Computer Sci","UG","Lower",94]
[null,2001,"Engineering","Computer Sci","UG","Upper",88]
[null,2001,"Engineering","Elec/Comp Eng","Grad","Grad",48]
[null,2001,"Engineering","Elec/Comp Eng","UG","Lower",46]
[null,2001,"Engineering","Elec/Comp Eng","UG","Upper",104]
[null,2001,"Engineering","Eng Mgmnt Pgm","Grad","Grad",2]
[null,2001,"Engineering","Eng Mgmnt Pgm","UG","Upper",22]
[null,2001,"Engineering","Engin Admin","UG","Lower",36]
[null,2001,"Engineering","Environ Eng","Grad","Grad",2]
[null,2001,"Engineering","Environ Eng","UG","Lower",8]
[null,2001,"Engineering","Herbst Humn Prg","UG","Lower",40]
[null,2001,"Engineering","Herbst Humn Prg","UG","Upper",82]
[null,2001,"Engineering","ITP","Grad","Grad",26]
[null,2001,"Engineering","Mechanical Eng","Grad","Grad",24]
[null,2001,"Engineering","Mechanical Eng","UG","Lower",176]
[null,2001,"Engineering","Mechanical Eng","UG","Upper",82]
[null,2002,"Engineering","Aerospace Eng","Grad","Grad",50]
[null,2002,"Engineering","Aerospace Eng","UG","Lower",42]
[null,2002,"Engineering","Aerospace Eng","UG","Upper",52]
[null,2002,"Engineering","Chem/Bio Eng","Grad","Grad",174]
[null,2002,"Engineering","Chem/Bio Eng","UG","Lower",58]
[null,2002,"Engineering","Chem/Bio Eng","UG","Upper",48]
[null,2002,"Engineering","Civ/Env/Arch En","Grad","Grad",60]
[null,2002,"Engineering","Civ/Env/Arch En","UG","Lower",194]
[null,2002,"Engineering","Civ/Env/Arch En","UG","Upper",156]
[null,2002,"Engineering","Computer Sci","Grad","Grad",52]
[null,2002,"Engineering","Computer Sci","UG","Lower",54]
[null,2002,"Engineering","Computer Sci","UG","Upper",96]
[null,2002,"Engineering","Elec/Comp Eng","Grad","Grad",44]
[null,2002,"Engineering","Elec/Comp Eng","UG","Lower",34]
[null,2002,"Engineering","Elec/Comp Eng","UG","Upper",116]
[null,2002,"Engineering","Eng Mgmnt Pgm","Grad","Grad",16]
[null,2002,"Engineering","Eng Mgmnt Pgm","UG","Upper",24]
[null,2002,"Engineering","Engin Admin","UG","Lower",42]
[null,2002,"Engineering","Engin Admin","UG","Upper",4]
[null,2002,"Engineering","Environ Eng","UG","Lower",8]
[null,2002,"Engineering","Environ Eng","UG","Upper",2]
[null,2002,"Engineering","Herbst Humn Prg","UG","Lower",56]
[null,2002,"Engineering","Herbst Humn Prg","UG","Upper",8]
[null,2002,"Engineering","ITP","Grad","Grad",160]
[null,2002,"Engineering","Mechanical Eng","Grad","Grad",22]
[null,2002,"Engineering","Mechanical Eng","UG","Lower",24]
[null,2002,"Engineering","Mechanical Eng","UG","Upper",82]
[null,2003,"Engineering","Aerospace Eng","Grad","Grad",52]
[null,2003,"Engineering","Aerospace Eng","UG","Lower",56]
[null,2003,"Engineering","Aerospace Eng","UG","Upper",52]
[null,2003,"Engineering","Chem/Bio Eng","Grad","Grad",30]
[null,2003,"Engineering","Chem/Bio Eng","UG","Lower",46]
[null,2003,"Engineering","Chem/Bio Eng","UG","Upper",44]
[null,2003,"Engineering","Civ/Env/Arch En","Grad","Grad",62]
[null,2003,"Engineering","Civ/Env/Arch En","UG","Lower",126]
[null,2003,"Engineering","Civ/Env/Arch En","UG","Upper",158]
[null,2003,"Engineering","Computer Sci","Grad","Grad",48]
[null,2003,"Engineering","Computer Sci","UG","Lower",80]
[null,2003,"Engineering","Computer Sci","UG","Upper",94]
[null,2003,"Engineering","Elec/Comp Eng","Grad","Grad",56]
[null,2003,"Engineering","Elec/Comp Eng","UG","Lower",58]
[null,2003,"Engineering","Elec/Comp Eng","UG","Upper",108]
[null,2003,"Engineering","Eng Mgmnt Pgm","Grad","Grad",4]
[null,2003,"Engineering","Eng Mgmnt Pgm","UG","Upper",28]
[null,2003,"Engineering","Engin Admin","UG","Lower",40]
[null,2003,"Engineering","Engin Admin","UG","Upper",28]
[null,2003,"Engineering","Environ Eng","Grad","Grad",6]
[null,2003,"Engineering","Environ Eng","UG","Lower",8]
[null,2003,"Engineering","Environ Eng","UG","Upper",2]
[null,2003,"Engineering","Herbst Humn Prg","UG","Lower",26]
[null,2003,"Engineering","Herbst Humn Prg","UG","Upper",54]
[null,2003,"Engineering","ITP","Grad","Grad",180]
[null,2003,"Engineering","ITP","UG","Upper",2]
[null,2003,"Engineering","Mechanical Eng","Grad","Grad",32]
[null,2003,"Engineering","Mechanical Eng","UG","Lower",34]
[null,2003,"Engineering","Mechanical Eng","UG","Upper",92]
[null,2004,"Engineering","Aerospace Eng","Grad","Grad",46]
[null,2004,"Engineering","Aerospace Eng","UG","Lower",52]
[null,2004,"Engineering","Aerospace Eng","UG","Upper",78]
[null,2004,"Engineering","Chem/Bio Eng","Grad","Grad",22]
[null,2004,"Engineering","Chem/Bio Eng","UG","Lower",42]
[null,2004,"Engineering","Chem/Bio Eng","UG","Upper",52]
[null,2004,"Engineering","Civ/Env/Arch En","Grad","Grad",64]
[null,2004,"Engineering","Civ/Env/Arch En","UG","Lower",24]
[null,2004,"Engineering","Civ/Env/Arch En","UG","Upper",128]
[null,2004,"Engineering","Computer Sci","Grad","Grad",48]
[null,2004,"Engineering","Computer Sci","UG","Lower",72]
[null,2004,"Engineering","Computer Sci","UG","Upper",94]
[null,2004,"Engineering","Elec/Comp Eng","Grad","Grad",52]
[null,2004,"Engineering","Elec/Comp Eng","UG","Lower",44]
[null,2004,"Engineering","Elec/Comp Eng","UG","Upper",128]
[null,2004,"Engineering","Eng Mgmnt Pgm","Grad","Grad",2]
[null,2004,"Engineering","Eng Mgmnt Pgm","UG","Upper",14]
[null,2004,"Engineering","Engin Admin","UG","Lower",28]
[null,2004,"Engineering","Engin Admin","UG","Upper",14]
[null,2004,"Engineering","Environ Eng","Grad","Grad",4]
[null,2004,"Engineering","Environ Eng","UG","Lower",8]
[null,2004,"Engineering","Environ Eng","UG","Upper",18]
[null,2004,"Engineering","Herbst Humn Prg","UG","Lower",14]
[null,2004,"Engineering","Herbst Humn Prg","UG","Upper",58]
[null,2004,"Engineering","ITP","Grad","Grad",182]
[null,2004,"Engineering","Mechanical Eng","Grad","Grad",34]
[null,2004,"Engineering","Mechanical Eng","UG","Lower",40]
[null,2004,"Engineering","Mechanical Eng","UG","Upper",128]
[null,2005,"Engineering","Aerospace Eng","Grad","Grad",48]
[null,2005,"Engineering","Aerospace Eng","UG","Lower",54]
[null,2005,"Engineering","Aerospace Eng","UG","Upper",92]
[null,2005,"Engineering","Chem/Bio Eng","Grad","Grad",26]
[null,2005,"Engineering","Chem/Bio Eng","UG","Lower",32]
[null,2005,"Engineering","Chem/Bio Eng","UG","Upper",66]
[null,2005,"Engineering","Civ/Env/Arch En","Grad","Grad",62]
[null,2005,"Engineering","Civ/Env/Arch En","UG","Lower",34]
[null,2005,"Engineering","Civ/Env/Arch En","UG","Upper",184]
[null,2005,"Engineering","Computer Sci","Grad","Grad",44]
[null,2005,"Engineering","Computer Sci","UG","Lower",68]
[null,2005,"Engineering","Computer Sci","UG","Upper",90]
[null,2005,"Engineering","Elec/Comp Eng","Grad","Grad",52]
[null,2005,"Engineering","Elec/Comp Eng","UG","Lower",56]
[null,2005,"Engineering","Elec/Comp Eng","UG","Upper",114]
[null,2005,"Engineering","Engin Admin","UG","Lower",34]
[null,2005,"Engineering","Engin Admin","UG","Upper",54]
[null,2005,"Engineering","Environ Eng","Grad","Grad",2]
[null,2005,"Engineering","Environ Eng","UG","Lower",12]
[null,2005,"Engineering","Herbst Humn Prg","UG","Lower",78]
[null,2005,"Engineering","Herbst Humn Prg","UG","Upper",24]
[null,2005,"Engineering","Mechanical Eng","Grad","Grad",38]
[null,2005,"Engineering","Mechanical Eng","UG","Lower",30]
[null,2005,"Engineering","Mechanical Eng","UG","Upper",150]
[null,2006,"Engineering","Aerospace Eng","Grad","Grad",42]
[null,2006,"Engineering","Aerospace Eng","UG","Lower",46]
[null,2006,"Engineering","Aerospace Eng","UG","Upper",90]
[null,2006,"Engineering","Chem/Bio Eng","Grad","Grad",26]
[null,2006,"Engineering","Chem/Bio Eng","UG","Lower",48]
[null,2006,"Engineering","Chem/Bio Eng","UG","Upper",54]
[null,2006,"Engineering","Civ/Env/Arch En","Grad","Grad",60]
[null,2006,"Engineering","Civ/Env/Arch En","UG","Lower",44]
[null,2006,"Engineering","Civ/Env/Arch En","UG","Upper",188]
[null,2006,"Engineering","Computer Sci","Grad","Grad",40]
[null,2006,"Engineering","Computer Sci","UG","Lower",50]
[null,2006,"Engineering","Computer Sci","UG","Upper",58]
[null,2006,"Engineering","Elec/Comp Eng","Grad","Grad",52]
[null,2006,"Engineering","Elec/Comp Eng","UG","Lower",48]
[null,2006,"Engineering","Elec/Comp Eng","UG","Upper",98]
[null,2006,"Engineering","Engin Admin","UG","Lower",46]
[null,2006,"Engineering","Engin Admin","UG","Upper",40]
[null,2006,"Engineering","Environ Eng","UG","Lower",10]
[null,2006,"Engineering","Environ Eng","UG","Upper",12]
[null,2006,"Engineering","Herbst Humn Prg","UG","Lower",38]
[null,2006,"Engineering","Herbst Humn Prg","UG","Upper",86]
[null,2006,"Engineering","ITP","Grad","Grad",14]
[null,2006,"Engineering","Mechanical Eng","Grad","Grad",32]
[null,2006,"Engineering","Mechanical Eng","UG","Lower",24]
[null,2006,"Engineering","Mechanical Eng","UG","Upper",128]
[null,2007,"Engineering","Aerospace Eng","Grad","Grad",54]
[null,2007,"Engineering","Aerospace Eng","UG","Lower",40]
[null,2007,"Engineering","Aerospace Eng","UG","Upper",70]
[null,2007,"Engineering","Chem/Bio Eng","Grad","Grad",24]
[null,2007,"Engineering","Chem/Bio Eng","UG","Lower",76]
[null,2007,"Engineering","Chem/Bio Eng","UG","Upper",70]
[null,2007,"Engineering","Civ/Env/Arch En","Grad","Grad",54]
[null,2007,"Engineering","Civ/Env/Arch En","UG","Lower",44]
[null,2007,"Engineering","Civ/Env/Arch En","UG","Upper",188]
[null,2007,"Engineering","Computer Sci","Grad","Grad",38]
[null,2007,"Engineering","Computer Sci","UG","Lower",44]
[null,2007,"Engineering","Computer Sci","UG","Upper",58]
[null,2007,"Engineering","Elec/Comp Eng","Grad","Grad",54]
[null,2007,"Engineering","Elec/Comp Eng","UG","Lower",54]
[null,2007,"Engineering","Elec/Comp Eng","UG","Upper",108]
[null,2007,"Engineering","Eng Mgmnt Pgm","Grad","Grad",2]
[null,2007,"Engineering","Eng Mgmnt Pgm","UG","Upper",2]
[null,2007,"Engineering","Engin Admin","UG","Lower",200]
[null,2007,"Engineering","Engin Admin","UG","Upper",20]
[null,2007,"Engineering","Environ Eng","Grad","Grad",4]
[null,2007,"Engineering","Environ Eng","UG","Lower",14]
[null,2007,"Engineering","Herbst Humn Prg","UG","Lower",54]
[null,2007,"Engineering","Herbst Humn Prg","UG","Upper",112]
[null,2007,"Engineering","ITP","Grad","Grad",84]
[null,2007,"Engineering","Mechanical Eng","Grad","Grad",38]
[null,2007,"Engineering","Mechanical Eng","UG","Lower",22]
[null,2007,"Engineering","Mechanical Eng","UG","Upper",114]
[null,1999,"Journalism","Journalism","Grad","Grad",32]
[null,1999,"Journalism","Journalism","UG","Lower",80]
[null,1999,"Journalism","Journalism","UG","Upper",46]
[null,2000,"Journalism","Journalism","Grad","Grad",24]
[null,2000,"Journalism","Journalism","UG","Lower",48]
[null,2000,"Journalism","Journalism","UG","Upper",46]
[null,2001,"Journalism","Journalism","Grad","Grad",162]
[null,2001,"Journalism","Journalism","UG","Lower",80]
[null,2001,"Journalism","Journalism","UG","Upper",46]
[null,2002,"Journalism","Journalism","Grad","Grad",22]
[null,2002,"Journalism","Journalism","UG","Lower",70]
[null,2002,"Journalism","Journalism","UG","Upper",72]
[null,2003,"Journalism","Journalism","Grad","Grad",24]
[null,2003,"Journalism","Journalism","UG","Lower",38]
[null,2003,"Journalism","Journalism","UG","Upper",80]
[null,2004,"Journalism","Journalism","Grad","Grad",22]
[null,2004,"Journalism","Journalism","UG","Lower",52]
[null,2004,"Journalism","Journalism","UG","Upper",76]
[null,2005,"Journalism","Journalism","Grad","Grad",28]
[null,2005,"Journalism","Journalism","UG","Lower",46]
[null,2005,"Journalism","Journalism","UG","Upper",66]
[null,2006,"Journalism","Journalism","Grad","Grad",24]
[null,2006,"Journalism","Journalism","UG","Lower",94]
[null,2006,"Journalism","Journalism","UG","Upper",68]
[null,2007,"Journalism","Journalism","Grad","Grad",26]
[null,2007,"Journalism","Journalism","UG","Lower",38]
[null,2007,"Journalism","Journalism","UG","Upper",64]
[null,1999,"Law","Law","Grad","Grad",270]
[null,2000,"Law","Law","Grad","Grad",262]
[null,2001,"Law","Law","Grad","Grad",260]
[null,2002,"Law","Law","Grad","Grad",236]
[null,2003,"Law","Law","Grad","Grad",248]
[null,2004,"Law","Law","Grad","Grad",260]
[null,2005,"Law","Law","Grad","Grad",258]
[null,2006,"Law","Law","Grad","Grad",264]
[null,2007,"Law","Law","Grad","Grad",284]
[null,1999,"Music","Music","Grad","Grad",54]
[null,1999,"Music","Music","UG","Lower",156]
[null,1999,"Music","Music","UG","Upper",150]
[null,2000,"Music","Music","Grad","Grad",40]
[null,2000,"Music","Music","UG","Lower",210]
[null,2000,"Music","Music","UG","Upper",62]
[null,2001,"Music","Music","Grad","Grad",44]
[null,2001,"Music","Music","UG","Lower",226]
[null,2001,"Music","Music","UG","Upper",66]
[null,2002,"Music","Music","Grad","Grad",30]
[null,2002,"Music","Music","UG","Lower",238]
[null,2002,"Music","Music","UG","Upper",132]
[null,2003,"Music","Music","Grad","Grad",30]
[null,2003,"Music","Music","UG","Lower",186]
[null,2003,"Music","Music","UG","Upper",124]
[null,2004,"Music","Music","Grad","Grad",28]
[null,2004,"Music","Music","UG","Lower",158]
[null,2004,"Music","Music","UG","Upper",132]
[null,2005,"Music","Music","Grad","Grad",30]
[null,2005,"Music","Music","UG","Lower",124]
[null,2005,"Music","Music","UG","Upper",118]
[null,2006,"Music","Music","Grad","Grad",32]
[null,2006,"Music","Music","UG","Lower",118]
[null,2006,"Music","Music","UG","Upper",40]
[null,2007,"Music","Music","Grad","Grad",30]
[null,2007,"Music","Music","UG","Lower",126]
[null,2007,"Music","Music","UG","Upper",46]

{"sheet":"Fields","index":3,"n_rows":65,"n_cols":13,"rows_kept":65}
[]
[]
[null,null,"Years",null,"College",null,"Department",{"$nulls":3},{"$f":"E4","v":"Architecture"},null,{"$f":"C4","v":1999}]
[null,null,1999,null,"Architecture",null,"A&S Admin",{"$nulls":3},{"$f":"E5","v":"Arts & Sciences"},null,{"$f":"C5","v":2000}]
[null,null,2000,null,"Arts & Sciences",null,"A&S AH Pgm/Cntr",{"$nulls":3},"Business",null,2001]
[null,null,2001,null,"Business",null,"A&S NS Pgm/Cntr",{"$nulls":3},"Education",null,2002]
[null,null,2002,null,"Education",null,"A&S SS Pgm/Cntr",{"$nulls":3},"Engineering",null,2003]
[null,null,2003,null,"Engineering",null,"Aerospace Eng",{"$nulls":3},"Journalism",null,2004]
[null,null,2004,null,"Journalism",null,"Anthropology",{"$nulls":3},"Law",null,2005]
[null,null,2005,null,"Law",null,"Applied Math",{"$nulls":3},"Music",null,2006]
[null,null,2006,null,"Music",null,"Arch/Planning",{"$nulls":3},"All",null,2007]
[null,null,2007,{"$nulls":3},"Art/Art History",{"$nulls":5},"All"]
[{"$nulls":6},"Astro Plnt Sci"]
[{"$nulls":6},"Atms Ocean Sci"]
[{"$nulls":6},"Biology-Ecol/Ev"]
[{"$nulls":6},"Biology-MCD"]
[{"$nulls":6},"Chem/Bio Eng"]
[{"$nulls":6},"Chem/Biochem"]
[{"$nulls":6},"Civ/Env/Arch En"]
[{"$nulls":6},"Classics"]
[{"$nulls":6},"Cntr for Nrsc"]
[{"$nulls":6},"Communication"]
[{"$nulls":6},"Comp Lit/Human"]
[{"$nulls":6},"Computer Sci"]
[{"$nulls":6},"E Asian Lng/Civ"]
[{"$nulls":6},"Economics"]
[{"$nulls":6},"Education"]
[{"$nulls":6},"Elec/Comp Eng"]
[{"$nulls":6},"Eng Mgmnt Pgm"]
[{"$nulls":6},"Engin Admin"]
[{"$nulls":6},"English"]
[{"$nulls":6},"Envirn Studies"]
[{"$nulls":6},"Environ Eng"]
[{"$nulls":6},"Ethnic Studies"]
[{"$nulls":6},"Film Studies"]
[{"$nulls":6},"French/Italian"]
[{"$nulls":6},"Geography"]
[{"$nulls":6},"Geology"]
[{"$nulls":6},"German/Slavic"]
[{"$nulls":6},"Herbst Humn Prg"]
[{"$nulls":6},"History"]
[{"$nulls":6},"Honors Program"]
[{"$nulls":6},"Int Physiology"]
[{"$nulls":6},"Intnl Affairs"]
[{"$nulls":6},"ITP"]
[{"$nulls":6},"Journalism"]
[{"$nulls":6},"Law"]
[{"$nulls":6},"Leeds Business"]
[{"$nulls":6},"Linguistics"]
[{"$nulls":6},"Mathematics"]
[{"$nulls":6},"Mechanical Eng"]
[{"$nulls":6},"Museum"]
[{"$nulls":6},"Music"]
[{"$nulls":6},"Philosophy"]
[{"$nulls":6},"Physics"]
[{"$nulls":6},"Political Sci"]
[{"$nulls":6},"Psychology"]
[{"$nulls":6},"Relig Studies"]
[{"$nulls":6},"ROTC"]
[{"$nulls":6},"Sociology"]
[{"$nulls":6},"Spanish/Port"]
[{"$nulls":6},"Spch/Lang/Hear"]
[{"$nulls":6},"Theatre/Dance"]
[{"$nulls":6},"Womens Studies"]
[{"$nulls":6},"Writing Program"]

{"sheet":"Calculations","index":4,"n_rows":24,"n_cols":33,"rows_kept":24,"merged":[[4,6,4,8],[4,21,4,23],[4,30,4,32],[5,3,5,5],[5,6,5,7],[5,11,5,13],[5,14,5,15],[5,18,5,20],[5,21,5,22],[5,23,5,24],[5,27,5,29],[5,30,5,31],[5,32,5,33],[6,3,6,5],[6,6,6,7],[6,11,6,13],[6,14,6,15],[6,18,6,20],[6,21,6,22],[6,23,6,24],[6,27,6,29],[6,30,6,31],[6,32,6,33],[7,3,7,5],[7,6,7,7],[7,11,7,13],[7,14,7,15],[7,18,7,20],[7,21,7,22],[7,23,7,24],[7,27,7,29],[7,30,7,31],[7,32,7,33],[8,3,8,5],[8,6,8,7],[8,11,8,13],[8,14,8,15],[8,18,8,20],[8,21,8,22],[8,23,8,24],[8,27,8,29],[8,30,8,31],[8,32,8,33],[9,3,9,5],[9,6,9,7],[9,11,9,13],[9,14,9,15],[9,18,9,20],[9,21,9,22],[9,23,9,24],[9,27,9,29],[9,30,9,31],[9,32,9,33],[10,3,10,5],[10,6,10,7],[10,11,10,13],[10,14,10,15],[10,18,10,20],[10,21,10,22],[10,23,10,24],[10,27,10,29],[10,30,10,31],[10,32,10,33],[11,3,11,5],[11,6,11,7],[11,11,11,13],[11,14,11,15],[11,18,11,20],[11,21,11,22],[11,23,11,24],[11,27,11,29],[11,30,11,31],[11,32,11,33],[12,3,12,5],[12,6,12,7],[12,11,12,13],[12,14,12,15],[12,18,12,20],[12,21,12,22],[12,23,12,24],[12,27,12,29],[12,30,12,31],[12,32,12,33],[13,3,13,5],[13,6,13,7],[13,11,13,13],[13,14,13,15],[13,18,13,20],[13,21,13,22],[13,23,13,24],[13,27,13,29],[13,30,13,31],[13,32,13,33],[14,3,14,5],[14,6,14,7],[14,14,14,15],[14,18,14,20],[14,21,14,22],[14,23,14,24],[14,27,14,29],[14,30,14,31],[14,32,14,33],[15,3,15,5],[15,6,15,7]]}
[]
[]
[null,null,"Dashboard #1",{"$nulls":7},"Dashboard #2",{"$nulls":6},"Dashboard #3 Part 1",{"$nulls":8},"Dashboard #3 Part 2"]
[{"$nulls":6},{"$f":"'Enrollment Dashboard'!AI5","v":5},{"$nulls":6},{"$f":"'Enrollment Dashboard'!AI18","v":2},{"$nulls":7},{"$f":"G4","v":5}]
[null,null,"Selected College",{"$nulls":3},{"$f":"INDEX(List_College2,G4,0)","v":"Engineering"},{"$nulls":3},"Selected Year",null,null,{"$f":"INDEX(List_Year2,N4,0)","v":2000},{"$nulls":3},"Selected College",{"$nulls":3},{"$f":"INDEX(List_College2,V4,0)","v":"Engineering"}]
[null,null,"Year","College",null,null,"Enrollment",{"$nulls":3},"Year","College",null,null,"Enrollment",null,null,"Year","College",null,null,"Degree",null,"Enrollment",null,null,"Year","College",null,null,"Degree",null,"Enrollment"]
[null,null,1999,{"$f":"IF($G$5=\"All\",\"\",$G$5)","v":"Engineering"},null,null,{"$f":"DSUM(DB,Data!$G$2,Calculations!C$6:F7)","v":1728},{"$nulls":3},{"$f":"IF($N$5=\"All\",\">1000\",$N$5)","v":2000},"Architecture",null,null,{"$f":"DSUM(DB,Data!$G$2,Calculations!K$6:N7)","v":140},null,null,1999,{"$f":"IF($V$5=\"All\",\"\",$V$5)","v":"Engineering"},null,null,"Grad",null,{"$f":"DSUM(DB,Data!$G$2,Calculations!R$6:W7)","v":578},null,null,1999,{"$f":"IF($V$5=\"All\",\"\",$V$5)","v":"Engineering"},null,null,"UG",null,{"$f":"DSUM(DB,Data!$G$2,Calculations!AA$6:AF7)","v":1150}]
[null,null,2000,{"$f":"IF($G$5=\"All\",\"\",$G$5)","v":"Engineering"},null,null,{"$f":"DSUM(DB,Data!$G$2,Calculations!C$6:F8)-SUM(G$7:H7)","v":1694},{"$nulls":3},{"$f":"IF($N$5=\"All\",\">1000\",$N$5)","v":2000},"Arts & Sciences",null,null,{"$f":"DSUM(DB,Data!$G$2,Calculations!K$6:N8)-SUM(O$7:P7)","v":2700},null,null,2000,{"$f":"IF($V$5=\"All\",\"\",$V$5)","v":"Engineering"},null,null,"Grad",null,{"$f":"DSUM(DB,Data!$G$2,Calculations!R$6:W8)-SUM(X$7:Y7)","v":476},null,null,2000,{"$f":"IF($V$5=\"All\",\"\",$V$5)","v":"Engineering"},null,null,"UG",null,{"$f":"DSUM(DB,Data!$G$2,Calculations!AA$6:AF8)-SUM(AG$7:AH7)","v":1218}]
[null,null,2001,"Engineering",null,null,{"$f":"DSUM(DB,Data!$G$2,Calculations!C$6:F9)-SUM(G$7:H8)","v":1762},{"$nulls":3},2000,"Business",null,null,{"$f":"DSUM(DB,Data!$G$2,Calculations!K$6:N9)-SUM(O$7:P8)","v":690},null,null,2001,"Engineering",null,null,"Grad",null,{"$f":"DSUM(DB,Data!$G$2,Calculations!R$6:W9)-SUM(X$7:Y8)","v":452},null,null,2001,"Engineering",null,null,"UG",null,{"$f":"DSUM(DB,Data!$G$2,Calculations!AA$6:AF9)-SUM(AG$7:AH8)","v":1310}]
[null,null,2002,"Engineering",null,null,{"$f":"DSUM(DB,Data!$G$2,Calculations!C$6:F10)-SUM(G$7:H9)","v":1678},{"$nulls":3},2000,"Education",null,null,{"$f":"DSUM(DB,Data!$G$2,Calculations!K$6:N10)-SUM(O$7:P9)","v":160},null,null,2002,"Engineering",null,null,"Grad",null,{"$f":"DSUM(DB,Data!$G$2,Calculations!R$6:W10)-SUM(X$7:Y9)","v":578},null,null,2002,"Engineering",null,null,"UG",null,{"$f":"DSUM(DB,Data!$G$2,Calculations!AA$6:AF10)-SUM(AG$7:AH9)","v":1100}]
[null,null,2003,"Engineering",null,null,{"$f":"DSUM(DB,Data!$G$2,Calculations!C$6:F11)-SUM(G$7:H10)","v":1606},{"$nulls":3},2000,"Engineering",null,null,{"$f":"DSUM(DB,Data!$G$2,Calculations!K$6:N11)-SUM(O$7:P10)","v":1694},null,null,2003,"Engineering",null,null,"Grad",null,{"$f":"DSUM(DB,Data!$G$2,Calculations!R$6:W11)-SUM(X$7:Y10)","v":470},null,null,2003,"Engineering",null,null,"UG",null,{"$f":"DSUM(DB,Data!$G$2,Calculations!AA$6:AF11)-SUM(AG$7:AH10)","v":1136}]
[null,null,2004,"Engineering",null,null,{"$f":"DSUM(DB,Data!$G$2,Calculations!C$6:F12)-SUM(G$7:H11)","v":1490},{"$nulls":3},2000,"Journalism",null,null,{"$f":"DSUM(DB,Data!$G$2,Calculations!K$6:N12)-SUM(O$7:P11)","v":118},null,null,2004,"Engineering",null,null,"Grad",null,{"$f":"DSUM(DB,Data!$G$2,Calculations!R$6:W12)-SUM(X$7:Y11)","v":454},null,null,2004,"Engineering",null,null,"UG",null,{"$f":"DSUM(DB,Data!$G$2,Calculations!AA$6:AF12)-SUM(AG$7:AH11)","v":1036}]
[null,null,2005,"Engineering",null,null,{"$f":"DSUM(DB,Data!$G$2,Calculations!C$6:F13)-SUM(G$7:H12)","v":1444},{"$nulls":3},2000,"Law",null,null,{"$f":"DSUM(DB,Data!$G$2,Calculations!K$6:N13)-SUM(O$7:P12)","v":262},null,null,2005,"Engineering",null,null,"Grad",null,{"$f":"DSUM(DB,Data!$G$2,Calculations!R$6:W13)-SUM(X$7:Y12)","v":272},null,null,2005,"Engineering",null,null,"UG",null,{"$f":"DSUM(DB,Data!$G$2,Calculations!AA$6:AF13)-SUM(AG$7:AH12)","v":1172}]
[null,null,2006,"Engineering",null,null,{"$f":"DSUM(DB,Data!$G$2,Calculations!C$6:F14)-SUM(G$7:H13)","v":1374},{"$nulls":3},2000,"Music",null,null,{"$f":"DSUM(DB,Data!$G$2,Calculations!K$6:N14)-SUM(O$7:P13)","v":312},null,null,2006,"Engineering",null,null,"Grad",null,{"$f":"DSUM(DB,Data!$G$2,Calculations!R$6:W14)-SUM(X$7:Y13)","v":266},null,null,2006,"Engineering",null,null,"UG",null,{"$f":"DSUM(DB,Data!$G$2,Calculations!AA$6:AF14)-SUM(AG$7:AH13)","v":1108}]
[null,null,2007,"Engineering",null,null,{"$f":"DSUM(DB,Data!$G$2,Calculations!C$6:F15)-SUM(G$7:H14)","v":1642},{"$nulls":10},2007,"Engineering",null,null,"Grad",null,{"$f":"DSUM(DB,Data!$G$2,Calculations!R$6:W15)-SUM(X$7:Y14)","v":352},null,null,2007,"Engineering",null,null,"UG",null,{"$f":"DSUM(DB,Data!$G$2,Calculations!AA$6:AF15)-SUM(AG$7:AH14)","v":1290}]
[{"$nulls":11},"Chart #2 Data"]
[{"$nulls":11},"Architecture",{"$f":"O7","v":140}]
[{"$nulls":11},"Arts & Sciences",{"$f":"O8","v":2700}]
[{"$nulls":11},"Business",690]
[{"$nulls":11},"Education",160]
[{"$nulls":11},"Engineering",1694]
[{"$nulls":11},"Journalism",118]
[{"$nulls":11},"Law",262]
[{"$nulls":11},"Music",312]

{"sheet":"PSW_Sheet","index":5,"n_rows":11,"n_cols":9,"rows_kept":11,"hidden":true}
["%3c%3fxml+version%3d%221.0%22+encoding%3d%22utf-16%22%3f%3e%0d%0a%3cPageInputCells+xmlns%3axsi%3d%22http%3a%2f%2fwww.w3.org%2f2001%2fXMLSchema-instance%22+xmlns%3axsd%3d%22http%3a%2f%2fwww.w3.org%2f2001%2fXMLSchema%22%3e%0d%0a++%3cInputCells+InputPrefix%3d%22PSWInput_%22+ListPrefix%3d%22PSWList_%22+CellCount%3d%220%22+%2f%3e%0d%0a++%3cInputCells+InputPrefix%3d%22PSWInput_%22+ListPrefix%3d%22PSWList_%22+CellCount%3d%220%22+%2f%3e%0d%0a++%3cInputCells+InputPrefix%3d%22PSWInput_%22+ListPrefix%3d%22PSWList_%22+CellCount%3d%220%22+%2f%3e%0d%0a%3c%2fPageInputCells%3e"]
[{"$cut":{"chars":32761,"head":" %3c%3fxml+version%3d%221.0%22+encoding%3d%22utf-16%22%3f%3e%0d%0a%3cTables+xmlns%3axsi%3d%22http%3a%2f%2fwww.w3.org%2f2001%2fXMLSchema-instance%22+xmlns%3axsd%3d%22http%3a%2f%2fwww.w3.org%2f2001%2fXMLSchema%22+InputPrefix%3d%22PSWInput_%22%3e%0d%0a++%3cTable+Name%3d%22PSWOutput_0%22+ColumnWidths%3d%2224.75-24.75-24.75-24.75-24.75-24.75-24.75-24.75-24.75-24.75-24.75-24.75-24.75-24.75-24.75-24.75-24.75-24.75-24.75-24.75-24.75-24.75-24.75-24.75-24.75-24.75-24.75-24.75-24.75-24.75-24.75%22+RowCount%3d%2231%22+Width%3d%22767.25%22+InputPrefix%3d%22PSWInput_%22%3e%0d%0a++++%3cTR%3e%0d%0a++++++%3cTD+Style%3d%22Class53%22+Merge%3d%22False%22+RowSpan%3d%22%22+ColSpan%3d%22%22+Format%3d%22General%22+Width%3d%2224.75%22+Text%3d%22%22+Height%3d%2215%22+Align%3d%22Left%22+CellHasFormula%3d%22False%22+FontName%3d%22Calibri%22+WrapText%3d%22False%22+FontSize%3d%2211%22+X%3d%221%22+Y%3d%221%22+%2f%3e%0d%0a++++++%3cTD+Style%3d%22Class53%22+Merge%3d%22False%22+RowSpan%3d%22%22+ColSpan%3d%22%22+Format%3d%22General%22+Width%3d%2224.75%22+Text%3d%22%22+Height%3d%2215%22+Align%3d%22Left%22+CellHasFormula%3d%22False%22+FontName%3d%22Calibri%22+WrapText%3d%22False%22+FontSize%3d%2211%22+X%3d%222%22+Y%3d%221%22+%2f%3e%0d%0a++++++%3cTD+Style%3d%22Class53%22+Merge%3d%22False%22+RowSpan%3d%22%22+ColSpan%3d%22%22+Format%3d%22General%22+Width%3d%2224.75%22+Text%3d%22%22+Height%3d%2215%22+Align%3d%22Left%22+CellHasFormula%3d%22False%22+FontName%3d%22Calibri%22+WrapText%3d%22False%22+FontSize%3d%2211%22+X%3d%223%22+Y%3d%221%22+%2f%3e%0d%0a++++++%3cTD+Style%3d%22Class53%22+Merge%3d%22False%22+RowSpan%3d%22%22+ColSpan%3d%22%22+Format%3d%22General%22+Width%3d%2224.75%22+Text%3d%22%22+Height%3d%2215%22+Align%3d%22Left%22+CellHasFormula%3d%22False%22+FontName%3d%22Calibri%22+WrapText%3d%22False%22+FontSize%3d%2211%22+X%3d%224%22+Y%3d%221%22+%2f%3e%0d%0a++++++%3cTD+Style%3d%22Class53%22+Merge%3d%22False%22+RowSpan%3d%22%22+ColSpan%3d%22%22+Format%3d%22General%22+Width%3d%2224.75%22+Text%3d%22%22+Height%3d%2215%22+Align%3d%22Left%22+CellHasFormula%3d%22False%22+FontName%3d%22Calibri%22+WrapText%3d%22False%22+FontSize%3d%2211%22+X%3d%225%22+Y%3d%221%22+%2f%3e%0d%0a++++++%3cTD+Style%3d%22Class53%22+Merge%3d%22False%22+RowSpan%3d%22%22+ColSpan%3d%22%22+Format%3d%22General%22+Width%3d%2224.75%22+Text%3d%22%22+Height%3d%2215%22+Align%3d%22Left%22+CellHasFormula%3d%22False%22+FontName%3d%22Calibri%22+WrapText%3d%22False%22+FontSize%3d%2211%22+X%3d%226%22+Y%3d%221%22+%2f%3e%0d%0a++++++%3cTD+Style%3d%22Class53%22+Merge%3d%22False%22+RowSpan%3d%22%22+ColSpan%3d%22%22+Format%3d%22General%22+Width%3d%2224.75%22+Text%3d%22%22+Height%3d%2215%22+Align%3d%22Left%22+CellHasFormula%3d%22False%22+FontName%3d%22Calibri%22+WrapText%3d%22False%22+FontSize%3d%2211%22+X%3d%227%22+Y%3d%221%22+%2f%3e%0d%0a++++++%3cTD+Style%3d%22Class53%22+Merge%3d%22False%22+RowSpan%3d%22%22+ColSpan%3d%22%22+Format%3d%22General%22+Width%3d%2224.75%22+Text%3d%22%22+Height%3d%2215%22+Align%3d%22Left%22+CellHasFormula%3d%22False%22+FontName%3d%22Calibri%22+WrapText%3d%22False%22+FontSize%3d%2211%22+X%3d%228%22+Y%3d%221%22+%2f%3e%0d%0a++++++%3cTD+Style%3d%22Class53%22+Merge%3d%22False%22+RowSpan%3d%22%22+ColSpan%3d%22%22+Format%3d%22General%22+Width%3d%2224.75%22+Text%3d%22%22+Height%3d%2215%22+Align%3d%22Left%22+CellHasFormula%3d%22False%22+FontName%3d%22Calibri%22+WrapText%3d%22False%22+FontSize%3d%2211%22+X%3d%229%22+Y%3d%221%22+%2f%3e%0d%0a++++++%3cTD+Style%3d%22Class53%22+Merge%3d%22False%22+RowSpan%3d%22%22+ColSpan%3d%22%22+Format%3d%22General%22+Width%3d%2224.75%22+Text%3d%22%22+Height%3d%2215%22+Align%3d%22Left%22+CellHasFormula%3d%22False%22+FontName%3d%22Calibri%22+WrapText%3d%22False%22+FontSize%3d%2211%22+X%3d%2210%22+Y%3d%221%22+%2f%3e%0d%0a++++++%3cTD+Style%3d%22Class53%22+Merge%3d%22False%22+RowSpan%3d%22%22+ColSpan%3d%22%22+Format%3d%22General%22+Width%3d%2224.75%22+Text%3d%22%22+Height%3d%2215%22+Align%3d%22Left%22+CellHasFormula%3d%22False%22+FontName%3d%22Calibri%22+WrapText%3d%22False%22+FontSize%3d%2211%22+X%3d%2211%22+Y%3d%221%22+%2f%3e%0d%0a++++++%3cTD+Style%3d%22Class53%22+Merge%"}},{"$cut":{"chars":32761,"head":" +++++++%3cColor%3e-11566659%3c%2fColor%3e%0d%0a++++++++++++++%3cBorderColor%3e-65537%3c%2fBorderColor%3e%0d%0a++++++++++++%3c%2fSeries%3e%0d%0a++++++++++++%3cSeries%3e%0d%0a++++++++++++++%3cNameIndex%3e1%3c%2fNameIndex%3e%0d%0a++++++++++++++%3cName%3eUndergraduate%3c%2fName%3e%0d%0a++++++++++++++%3cColor%3e-6571175%3c%2fColor%3e%0d%0a++++++++++++++%3cBorderColor%3e-65537%3c%2fBorderColor%3e%0d%0a++++++++++++%3c%2fSeries%3e%0d%0a++++++++++%3c%2fSeriesCollection%3e%0d%0a++++++++++%3cLegendPosition+%2f%3e%0d%0a++++++++++%3cHasLegend%3etrue%3c%2fHasLegend%3e%0d%0a++++++++++%3cAbsoluteTop%3e72.7499237060547%3c%2fAbsoluteTop%3e%0d%0a++++++++++%3cAbsoluteLeft%3e482.25%3c%2fAbsoluteLeft%3e%0d%0a++++++++%3c%2fChart%3e%0d%0a++++++%3c%2fTD%3e%0d%0a++++++%3cTD+Style%3d%22Class57%22+Merge%3d%22False%22+RowSpan%3d%22%22+ColSpan%3d%22%22+Format%3d%22General%22+Width%3d%2224.75%22+Text%3d%22%22+Height%3d%2215.75%22+Align%3d%22Left%22+CellHasFormula%3d%22False%22+FontName%3d%22Calibri%22+WrapText%3d%22False%22+FontSize%3d%2211%22+X%3d%2221%22+Y%3d%225%22+%2f%3e%0d%0a++++++%3cTD+Style%3d%22Class57%22+Merge%3d%22False%22+RowSpan%3d%22%22+ColSpan%3d%22%22+Format%3d%22General%22+Width%3d%2224.75%22+Text%3d%22%22+Height%3d%2215.75%22+Align%3d%22Left%22+CellHasFormula%3d%22False%22+FontName%3d%22Calibri%22+WrapText%3d%22False%22+FontSize%3d%2211%22+X%3d%2222%22+Y%3d%225%22+%2f%3e%0d%0a++++++%3cTD+Style%3d%22Class57%22+Merge%3d%22False%22+RowSpan%3d%22%22+ColSpan%3d%22%22+Format%3d%22General%22+Width%3d%2224.75%22+Text%3d%22%22+Height%3d%2215.75%22+Align%3d%22Left%22+CellHasFormula%3d%22False%22+FontName%3d%22Calibri%22+WrapText%3d%22False%22+FontSize%3d%2211%22+X%3d%2223%22+Y%3d%225%22+%2f%3e%0d%0a++++++%3cTD+Style%3d%22Class57%22+Merge%3d%22False%22+RowSpan%3d%22%22+ColSpan%3d%22%22+Format%3d%22General%22+Width%3d%2224.75%22+Text%3d%22%22+Height%3d%2215.75%22+Align%3d%22Left%22+CellHasFormula%3d%22False%22+FontName%3d%22Calibri%22+WrapText%3d%22False%22+FontSize%3d%2211%22+X%3d%2224%22+Y%3d%225%22+%2f%3e%0d%0a++++++%3cTD+Style%3d%22Class57%22+Merge%3d%22False%22+RowSpan%3d%22%22+ColSpan%3d%22%22+Format%3d%22General%22+Width%3d%2224.75%22+Text%3d%22%22+Height%3d%2215.75%22+Align%3d%22Left%22+CellHasFormula%3d%22False%22+FontName%3d%22Calibri%22+WrapText%3d%22False%22+FontSize%3d%2211%22+X%3d%2225%22+Y%3d%225%22+%2f%3e%0d%0a++++++%3cTD+Style%3d%22Class57%22+Merge%3d%22False%22+RowSpan%3d%22%22+ColSpan%3d%22%22+Format%3d%22General%22+Width%3d%2224.75%22+Text%3d%22%22+Height%3d%2215.75%22+Align%3d%22Left%22+CellHasFormula%3d%22False%22+FontName%3d%22Calibri%22+WrapText%3d%22False%22+FontSize%3d%2211%22+X%3d%2226%22+Y%3d%225%22+%2f%3e%0d%0a++++++%3cTD+Style%3d%22Class57%22+Merge%3d%22False%22+RowSpan%3d%22%22+ColSpan%3d%22%22+Format%3d%22General%22+Width%3d%2224.75%22+Text%3d%22%22+Height%3d%2215.75%22+Align%3d%22Left%22+CellHasFormula%3d%22False%22+FontName%3d%22Calibri%22+WrapText%3d%22False%22+FontSize%3d%2211%22+X%3d%2227%22+Y%3d%225%22+%2f%3e%0d%0a++++++%3cTD+Style%3d%22Class57%22+Merge%3d%22False%22+RowSpan%3d%22%22+ColSpan%3d%22%22+Format%3d%22General%22+Width%3d%2224.75%22+Text%3d%22%22+Height%3d%2215.75%22+Align%3d%22Left%22+CellHasFormula%3d%22False%22+FontName%3d%22Calibri%22+WrapText%3d%22False%22+FontSize%3d%2211%22+X%3d%2228%22+Y%3d%225%22+%2f%3e%0d%0a++++++%3cTD+Style%3d%22Class57%22+Merge%3d%22False%22+RowSpan%3d%22%22+ColSpan%3d%22%22+Format%3d%22General%22+Width%3d%2224.75%22+Text%3d%22%22+Height%3d%2215.75%22+Align%3d%22Left%22+CellHasFormula%3d%22False%22+FontName%3d%22Calibri%22+WrapText%3d%22False%22+FontSize%3d%2211%22+X%3d%2229%22+Y%3d%225%22+%2f%3e%0d%0a++++++%3cTD+Style%3d%22Class57%22+Merge%3d%22False%22+RowSpan%3d%22%22+ColSpan%3d%22%22+Format%3d%22General%22+Width%3d%2224.75%22+Text%3d%22%22+Height%3d%2215.75%22+Align%3d%22Left%22+CellHasFormula%3d%22False%22+FontName%3d%22Calibri%22+WrapText%3d%22False%22+FontSize%3d%2211%22+X%3d%2230%22+Y%3d%225%22+%2f%3e%0d%0a++++++%3cTD+Style%3d%22Class53%22+Merge%3d%22False%22+RowSpan%3d%22%22+ColSpan%3d%22%22+Format%3d%22General%22+Width%3d%2224.75%22+Text%3d%22%22+Height%3d%221"}},{"$cut":{"chars":32761,"head":" 53%22+Merge%3d%22False%22+RowSpan%3d%22%22+ColSpan%3d%22%22+Format%3d%22General%22+Width%3d%2224.75%22+Text%3d%22%22+Height%3d%2215%22+Align%3d%22Left%22+CellHasFormula%3d%22False%22+FontName%3d%22Calibri%22+WrapText%3d%22False%22+FontSize%3d%2211%22+X%3d%222%22+Y%3d%229%22+%2f%3e%0d%0a++++++%3cTD+Style%3d%22Class53%22+Merge%3d%22False%22+RowSpan%3d%22%22+ColSpan%3d%22%22+Format%3d%22General%22+Width%3d%2224.75%22+Text%3d%22%22+Height%3d%2215%22+Align%3d%22Left%22+CellHasFormula%3d%22False%22+FontName%3d%22Calibri%22+WrapText%3d%22False%22+FontSize%3d%2211%22+X%3d%223%22+Y%3d%229%22%3e%0d%0a++++++++%3cFormControl%3e%0d%0a++++++++++%3cWidth%3e30%3c%2fWidth%3e%0d%0a++++++++++%3cHeight%3e17.25%3c%2fHeight%3e%0d%0a++++++++++%3cLeft%3e75%3c%2fLeft%3e%0d%0a++++++++++%3cTop%3e132%3c%2fTop%3e%0d%0a++++++++++%3cNameIndex%3e0%3c%2fNameIndex%3e%0d%0a++++++++++%3cChecked%3efalse%3c%2fChecked%3e%0d%0a++++++++++%3cLabel+%2f%3e%0d%0a++++++++++%3cValue%3e4%3c%2fValue%3e%0d%0a++++++++++%3cType%3eOptionButton%3c%2fType%3e%0d%0a++++++++%3c%2fFormControl%3e%0d%0a++++++%3c%2fTD%3e%0d%0a++++++%3cTD+Style%3d%22Class53%22+Merge%3d%22True%22+RowSpan%3d%22%22+ColSpan%3d%224%22+Format%3d%22General%22+Width%3d%2299%22+Text%3d%22Education%22+Height%3d%2215%22+Align%3d%22Left%22+CellHasFormula%3d%22False%22+FontName%3d%22Calibri%22+WrapText%3d%22False%22+FontSize%3d%2211%22+X%3d%224%22+Y%3d%229%22+%2f%3e%0d%0a++++++%3cTD+Style%3d%22Class53%22+Merge%3d%22False%22+RowSpan%3d%22%22+ColSpan%3d%22%22+Format%3d%22General%22+Width%3d%2224.75%22+Text%3d%22%22+Height%3d%2215%22+Align%3d%22Left%22+CellHasFormula%3d%22False%22+FontName%3d%22Calibri%22+WrapText%3d%22False%22+FontSize%3d%2211%22+X%3d%228%22+Y%3d%229%22+%2f%3e%0d%0a++++++%3cTD+Style%3d%22Class53%22+Merge%3d%22False%22+RowSpan%3d%22%22+ColSpan%3d%22%22+Format%3d%22General%22+Width%3d%2224.75%22+Text%3d%22%22+Height%3d%2215%22+Align%3d%22Left%22+CellHasFormula%3d%22False%22+FontName%3d%22Calibri%22+WrapText%3d%22False%22+FontSize%3d%2211%22+X%3d%229%22+Y%3d%229%22+%2f%3e%0d%0a++++++%3cTD+Style%3d%22Class53%22+Merge%3d%22False%22+RowSpan%3d%22%22+ColSpan%3d%22%22+Format%3d%22General%22+Width%3d%2224.75%22+Text%3d%22%22+Height%3d%2215%22+Align%3d%22Left%22+CellHasFormula%3d%22False%22+FontName%3d%22Calibri%22+WrapText%3d%22False%22+FontSize%3d%2211%22+X%3d%2210%22+Y%3d%229%22+%2f%3e%0d%0a++++++%3cTD+Style%3d%22Class53%22+Merge%3d%22False%22+RowSpan%3d%22%22+ColSpan%3d%22%22+Format%3d%22General%22+Width%3d%2224.75%22+Text%3d%22%22+Height%3d%2215%22+Align%3d%22Left%22+CellHasFormula%3d%22False%22+FontName%3d%22Calibri%22+WrapText%3d%22False%22+FontSize%3d%2211%22+X%3d%2211%22+Y%3d%229%22+%2f%3e%0d%0a++++++%3cTD+Style%3d%22Class53%22+Merge%3d%22False%22+RowSpan%3d%22%22+ColSpan%3d%22%22+Format%3d%22General%22+Width%3d%2224.75%22+Text%3d%22%22+Height%3d%2215%22+Align%3d%22Left%22+CellHasFormula%3d%22False%22+FontName%3d%22Calibri%22+WrapText%3d%22False%22+FontSize%3d%2211%22+X%3d%2212%22+Y%3d%229%22+%2f%3e%0d%0a++++++%3cTD+Style%3d%22Class53%22+Merge%3d%22False%22+RowSpan%3d%22%22+ColSpan%3d%22%22+Format%3d%22General%22+Width%3d%2224.75%22+Text%3d%22%22+Height%3d%2215%22+Align%3d%22Left%22+CellHasFormula%3d%22False%22+FontName%3d%22Calibri%22+WrapText%3d%22False%22+FontSize%3d%2211%22+X%3d%2213%22+Y%3d%229%22+%2f%3e%0d%0a++++++%3cTD+Style%3d%22Class53%22+Merge%3d%22False%22+RowSpan%3d%22%22+ColSpan%3d%22%22+Format%3d%22General%22+Width%3d%2224.75%22+Text%3d%22%22+Height%3d%2215%22+Align%3d%22Left%22+CellHasFormula%3d%22False%22+FontName%3d%22Calibri%22+WrapText%3d%22False%22+FontSize%3d%2211%22+X%3d%2214%22+Y%3d%229%22+%2f%3e%0d%0a++++++%3cTD+Style%3d%22Class53%22+Merge%3d%22False%22+RowSpan%3d%22%22+ColSpan%3d%22%22+Format%3d%22General%22+Width%3d%2224.75%22+Text%3d%22%22+Height%3d%2215%22+Align%3d%22Left%22+CellHasFormula%3d%22False%22+FontName%3d%22Calibri%22+WrapText%3d%22False%22+FontSize%3d%2211%22+X%3d%2215%22+Y%3d%229%22+%2f%3e%0d%0a++++++%3cTD+Style%3d%22Class53%22+Merge%3d%22False%22+RowSpan%3d%22%22+ColSpan%3d%22%22+Format%3d%22General%22+Width%3d%2224.75%22+Text%3d%22%22+Height%3d%2215%22+Ali"}},{"$cut":{"chars":32761,"head":" 22+Merge%3d%22False%22+RowSpan%3d%22%22+ColSpan%3d%22%22+Format%3d%22General%22+Width%3d%2224.75%22+Text%3d%22%22+Height%3d%2215%22+Align%3d%22Left%22+CellHasFormula%3d%22False%22+FontName%3d%22Calibri%22+WrapText%3d%22False%22+FontSize%3d%2211%22+X%3d%2218%22+Y%3d%2212%22+%2f%3e%0d%0a++++++%3cTD+Style%3d%22Class53%22+Merge%3d%22False%22+RowSpan%3d%22%22+ColSpan%3d%22%22+Format%3d%22General%22+Width%3d%2224.75%22+Text%3d%22%22+Height%3d%2215%22+Align%3d%22Left%22+CellHasFormula%3d%22False%22+FontName%3d%22Calibri%22+WrapText%3d%22False%22+FontSize%3d%2211%22+X%3d%2219%22+Y%3d%2212%22+%2f%3e%0d%0a++++++%3cTD+Style%3d%22Class53%22+Merge%3d%22False%22+RowSpan%3d%22%22+ColSpan%3d%22%22+Format%3d%22General%22+Width%3d%2224.75%22+Text%3d%22%22+Height%3d%2215%22+Align%3d%22Left%22+CellHasFormula%3d%22False%22+FontName%3d%22Calibri%22+WrapText%3d%22False%22+FontSize%3d%2211%22+X%3d%2220%22+Y%3d%2212%22+%2f%3e%0d%0a++++++%3cTD+Style%3d%22Class53%22+Merge%3d%22False%22+RowSpan%3d%22%22+ColSpan%3d%22%22+Format%3d%22General%22+Width%3d%2224.75%22+Text%3d%22%22+Height%3d%2215%22+Align%3d%22Left%22+CellHasFormula%3d%22False%22+FontName%3d%22Calibri%22+WrapText%3d%22False%22+FontSize%3d%2211%22+X%3d%2221%22+Y%3d%2212%22+%2f%3e%0d%0a++++++%3cTD+Style%3d%22Class53%22+Merge%3d%22False%22+RowSpan%3d%22%22+ColSpan%3d%22%22+Format%3d%22General%22+Width%3d%2224.75%22+Text%3d%22%22+Height%3d%2215%22+Align%3d%22Left%22+CellHasFormula%3d%22False%22+FontName%3d%22Calibri%22+WrapText%3d%22False%22+FontSize%3d%2211%22+X%3d%2222%22+Y%3d%2212%22+%2f%3e%0d%0a++++++%3cTD+Style%3d%22Class53%22+Merge%3d%22False%22+RowSpan%3d%22%22+ColSpan%3d%22%22+Format%3d%22General%22+Width%3d%2224.75%22+Text%3d%22%22+Height%3d%2215%22+Align%3d%22Left%22+CellHasFormula%3d%22False%22+FontName%3d%22Calibri%22+WrapText%3d%22False%22+FontSize%3d%2211%22+X%3d%2223%22+Y%3d%2212%22+%2f%3e%0d%0a++++++%3cTD+Style%3d%22Class53%22+Merge%3d%22False%22+RowSpan%3d%22%22+ColSpan%3d%22%22+Format%3d%22General%22+Width%3d%2224.75%22+Text%3d%22%22+Height%3d%2215%22+Align%3d%22Left%22+CellHasFormula%3d%22False%22+FontName%3d%22Calibri%22+WrapText%3d%22False%22+FontSize%3d%2211%22+X%3d%2224%22+Y%3d%2212%22+%2f%3e%0d%0a++++++%3cTD+Style%3d%22Class53%22+Merge%3d%22False%22+RowSpan%3d%22%22+ColSpan%3d%22%22+Format%3d%22General%22+Width%3d%2224.75%22+Text%3d%22%22+Height%3d%2215%22+Align%3d%22Left%22+CellHasFormula%3d%22False%22+FontName%3d%22Calibri%22+WrapText%3d%22False%22+FontSize%3d%2211%22+X%3d%2225%22+Y%3d%2212%22+%2f%3e%0d%0a++++++%3cTD+Style%3d%22Class53%22+Merge%3d%22False%22+RowSpan%3d%22%22+ColSpan%3d%22%22+Format%3d%22General%22+Width%3d%2224.75%22+Text%3d%22%22+Height%3d%2215%22+Align%3d%22Left%22+CellHasFormula%3d%22False%22+FontName%3d%22Calibri%22+WrapText%3d%22False%22+FontSize%3d%2211%22+X%3d%2226%22+Y%3d%2212%22+%2f%3e%0d%0a++++++%3cTD+Style%3d%22Class53%22+Merge%3d%22False%22+RowSpan%3d%22%22+ColSpan%3d%22%22+Format%3d%22General%22+Width%3d%2224.75%22+Text%3d%22%22+Height%3d%2215%22+Align%3d%22Left%22+CellHasFormula%3d%22False%22+FontName%3d%22Calibri%22+WrapText%3d%22False%22+FontSize%3d%2211%22+X%3d%2227%22+Y%3d%2212%22+%2f%3e%0d%0a++++++%3cTD+Style%3d%22Class53%22+Merge%3d%22False%22+RowSpan%3d%22%22+ColSpan%3d%22%22+Format%3d%22General%22+Width%3d%2224.75%22+Text%3d%22%22+Height%3d%2215%22+Align%3d%22Left%22+CellHasFormula%3d%22False%22+FontName%3d%22Calibri%22+WrapText%3d%22False%22+FontSize%3d%2211%22+X%3d%2228%22+Y%3d%2212%22+%2f%3e%0d%0a++++++%3cTD+Style%3d%22Class53%22+Merge%3d%22False%22+RowSpan%3d%22%22+ColSpan%3d%22%22+Format%3d%22General%22+Width%3d%2224.75%22+Text%3d%22%22+Height%3d%2215%22+Align%3d%22Left%22+CellHasFormula%3d%22False%22+FontName%3d%22Calibri%22+WrapText%3d%22False%22+FontSize%3d%2211%22+X%3d%2229%22+Y%3d%2212%22+%2f%3e%0d%0a++++++%3cTD+Style%3d%22Class53%22+Merge%3d%22False%22+RowSpan%3d%22%22+ColSpan%3d%22%22+Format%3d%22General%22+Width%3d%2224.75%22+Text%3d%22%22+Height%3d%2215%22+Align%3d%22Left%22+CellHasFormula%3d%22False%22+FontName%3d%22Calibri%22+WrapText%3d%22False%22+FontSize%3d%2211%22+X%3d%2230%22+Y%3d%2212%22+%2f%3e%0d%0a+++++"}},{"$cut":{"chars":32761,"head":" %22+Merge%3d%22False%22+RowSpan%3d%22%22+ColSpan%3d%22%22+Format%3d%22General%22+Width%3d%2224.75%22+Text%3d%22%22+Height%3d%2215%22+Align%3d%22Left%22+CellHasFormula%3d%22False%22+FontName%3d%22Calibri%22+WrapText%3d%22False%22+FontSize%3d%2211%22+X%3d%2231%22+Y%3d%2215%22+%2f%3e%0d%0a++++%3c%2fTR%3e%0d%0a++++%3cTR%3e%0d%0a++++++%3cTD+Style%3d%22Class53%22+Merge%3d%22False%22+RowSpan%3d%22%22+ColSpan%3d%22%22+Format%3d%22General%22+Width%3d%2224.75%22+Text%3d%22%22+Height%3d%2215%22+Align%3d%22Left%22+CellHasFormula%3d%22False%22+FontName%3d%22Calibri%22+WrapText%3d%22False%22+FontSize%3d%2211%22+X%3d%221%22+Y%3d%2216%22+%2f%3e%0d%0a++++++%3cTD+Style%3d%22Class53%22+Merge%3d%22False%22+RowSpan%3d%22%22+ColSpan%3d%22%22+Format%3d%22General%22+Width%3d%2224.75%22+Text%3d%22%22+Height%3d%2215%22+Align%3d%22Left%22+CellHasFormula%3d%22False%22+FontName%3d%22Calibri%22+WrapText%3d%22False%22+FontSize%3d%2211%22+X%3d%222%22+Y%3d%2216%22+%2f%3e%0d%0a++++++%3cTD+Style%3d%22Class53%22+Merge%3d%22False%22+RowSpan%3d%22%22+ColSpan%3d%22%22+Format%3d%22General%22+Width%3d%2224.75%22+Text%3d%22%22+Height%3d%2215%22+Align%3d%22Left%22+CellHasFormula%3d%22False%22+FontName%3d%22Calibri%22+WrapText%3d%22False%22+FontSize%3d%2211%22+X%3d%223%22+Y%3d%2216%22+%2f%3e%0d%0a++++++%3cTD+Style%3d%22Class53%22+Merge%3d%22False%22+RowSpan%3d%22%22+ColSpan%3d%22%22+Format%3d%22General%22+Width%3d%2224.75%22+Text%3d%22%22+Height%3d%2215%22+Align%3d%22Left%22+CellHasFormula%3d%22False%22+FontName%3d%22Calibri%22+WrapText%3d%22False%22+FontSize%3d%2211%22+X%3d%224%22+Y%3d%2216%22+%2f%3e%0d%0a++++++%3cTD+Style%3d%22Class53%22+Merge%3d%22False%22+RowSpan%3d%22%22+ColSpan%3d%22%22+Format%3d%22General%22+Width%3d%2224.75%22+Text%3d%22%22+Height%3d%2215%22+Align%3d%22Left%22+CellHasFormula%3d%22False%22+FontName%3d%22Calibri%22+WrapText%3d%22False%22+FontSize%3d%2211%22+X%3d%225%22+Y%3d%2216%22+%2f%3e%0d%0a++++++%3cTD+Style%3d%22Class53%22+Merge%3d%22False%22+RowSpan%3d%22%22+ColSpan%3d%22%22+Format%3d%22General%22+Width%3d%2224.75%22+Text%3d%22%22+Height%3d%2215%22+Align%3d%22Left%22+CellHasFormula%3d%22False%22+FontName%3d%22Calibri%22+WrapText%3d%22False%22+FontSize%3d%2211%22+X%3d%226%22+Y%3d%2216%22+%2f%3e%0d%0a++++++%3cTD+Style%3d%22Class53%22+Merge%3d%22False%22+RowSpan%3d%22%22+ColSpan%3d%22%22+Format%3d%22General%22+Width%3d%2224.75%22+Text%3d%22%22+Height%3d%2215%22+Align%3d%22Left%22+CellHasFormula%3d%22False%22+FontName%3d%22Calibri%22+WrapText%3d%22False%22+FontSize%3d%2211%22+X%3d%227%22+Y%3d%2216%22+%2f%3e%0d%0a++++++%3cTD+Style%3d%22Class53%22+Merge%3d%22False%22+RowSpan%3d%22%22+ColSpan%3d%22%22+Format%3d%22General%22+Width%3d%2224.75%22+Text%3d%22%22+Height%3d%2215%22+Align%3d%22Left%22+CellHasFormula%3d%22False%22+FontName%3d%22Calibri%22+WrapText%3d%22False%22+FontSize%3d%2211%22+X%3d%228%22+Y%3d%2216%22+%2f%3e%0d%0a++++++%3cTD+Style%3d%22Class53%22+Merge%3d%22False%22+RowSpan%3d%22%22+ColSpan%3d%22%22+Format%3d%22General%22+Width%3d%2224.75%22+Text%3d%22%22+Height%3d%2215%22+Align%3d%22Left%22+CellHasFormula%3d%22False%22+FontName%3d%22Calibri%22+WrapText%3d%22False%22+FontSize%3d%2211%22+X%3d%229%22+Y%3d%2216%22+%2f%3e%0d%0a++++++%3cTD+Style%3d%22Class53%22+Merge%3d%22False%22+RowSpan%3d%22%22+ColSpan%3d%22%22+Format%3d%22General%22+Width%3d%2224.75%22+Text%3d%22%22+Height%3d%2215%22+Align%3d%22Left%22+CellHasFormula%3d%22False%22+FontName%3d%22Calibri%22+WrapText%3d%22False%22+FontSize%3d%2211%22+X%3d%2210%22+Y%3d%2216%22+%2f%3e%0d%0a++++++%3cTD+Style%3d%22Class53%22+Merge%3d%22False%22+RowSpan%3d%22%22+ColSpan%3d%22%22+Format%3d%22General%22+Width%3d%2224.75%22+Text%3d%22%22+Height%3d%2215%22+Align%3d%22Left%22+CellHasFormula%3d%22False%22+FontName%3d%22Calibri%22+WrapText%3d%22False%22+FontSize%3d%2211%22+X%3d%2211%22+Y%3d%2216%22+%2f%3e%0d%0a++++++%3cTD+Style%3d%22Class53%22+Merge%3d%22False%22+RowSpan%3d%22%22+ColSpan%3d%22%22+Format%3d%22General%22+Width%3d%2224.75%22+Text%3d%22%22+Height%3d%2215%22+Align%3d%22Left%22+CellHasFormula%3d%22False%22+FontName%3d%22Calibri%22+WrapText%3d%22False%22+FontSize%3d%2211%22+X%3d%2212%22"}},{"$cut":{"chars":32761,"head":" %22+Text%3d%22%22+Height%3d%2215%22+Align%3d%22Left%22+CellHasFormula%3d%22False%22+FontName%3d%22Calibri%22+WrapText%3d%22False%22+FontSize%3d%2211%22+X%3d%2229%22+Y%3d%2219%22+%2f%3e%0d%0a++++++%3cTD+Style%3d%22Class53%22+Merge%3d%22False%22+RowSpan%3d%22%22+ColSpan%3d%22%22+Format%3d%22General%22+Width%3d%2224.75%22+Text%3d%22%22+Height%3d%2215%22+Align%3d%22Left%22+CellHasFormula%3d%22False%22+FontName%3d%22Calibri%22+WrapText%3d%22False%22+FontSize%3d%2211%22+X%3d%2230%22+Y%3d%2219%22+%2f%3e%0d%0a++++++%3cTD+Style%3d%22Class53%22+Merge%3d%22False%22+RowSpan%3d%22%22+ColSpan%3d%22%22+Format%3d%22General%22+Width%3d%2224.75%22+Text%3d%22%22+Height%3d%2215%22+Align%3d%22Left%22+CellHasFormula%3d%22False%22+FontName%3d%22Calibri%22+WrapText%3d%22False%22+FontSize%3d%2211%22+X%3d%2231%22+Y%3d%2219%22+%2f%3e%0d%0a++++%3c%2fTR%3e%0d%0a++++%3cTR%3e%0d%0a++++++%3cTD+Style%3d%22Class53%22+Merge%3d%22False%22+RowSpan%3d%22%22+ColSpan%3d%22%22+Format%3d%22General%22+Width%3d%2224.75%22+Text%3d%22%22+Height%3d%2215%22+Align%3d%22Left%22+CellHasFormula%3d%22False%22+FontName%3d%22Calibri%22+WrapText%3d%22False%22+FontSize%3d%2211%22+X%3d%221%22+Y%3d%2220%22+%2f%3e%0d%0a++++++%3cTD+Style%3d%22Class53%22+Merge%3d%22False%22+RowSpan%3d%22%22+ColSpan%3d%22%22+Format%3d%22General%22+Width%3d%2224.75%22+Text%3d%22%22+Height%3d%2215%22+Align%3d%22Left%22+CellHasFormula%3d%22False%22+FontName%3d%22Calibri%22+WrapText%3d%22False%22+FontSize%3d%2211%22+X%3d%222%22+Y%3d%2220%22+%2f%3e%0d%0a++++++%3cTD+Style%3d%22Class53%22+Merge%3d%22False%22+RowSpan%3d%22%22+ColSpan%3d%22%22+Format%3d%22General%22+Width%3d%2224.75%22+Text%3d%22%22+Height%3d%2215%22+Align%3d%22Left%22+CellHasFormula%3d%22False%22+FontName%3d%22Calibri%22+WrapText%3d%22False%22+FontSize%3d%2211%22+X%3d%223%22+Y%3d%2220%22%3e%0d%0a++++++++%3cFormControl%3e%0d%0a++++++++++%3cWidth%3e30%3c%2fWidth%3e%0d%0a++++++++++%3cHeight%3e17.25%3c%2fHeight%3e%0d%0a++++++++++%3cLeft%3e75.75%3c%2fLeft%3e%0d%0a++++++++++%3cTop%3e301.5%3c%2fTop%3e%0d%0a++++++++++%3cNameIndex%3e1%3c%2fNameIndex%3e%0d%0a++++++++++%3cChecked%3efalse%3c%2fChecked%3e%0d%0a++++++++++%3cLabel+%2f%3e%0d%0a++++++++++%3cValue%3e2%3c%2fValue%3e%0d%0a++++++++++%3cType%3eOptionButton%3c%2fType%3e%0d%0a++++++++%3c%2fFormControl%3e%0d%0a++++++%3c%2fTD%3e%0d%0a++++++%3cTD+Style%3d%22Class60%22+Merge%3d%22False%22+RowSpan%3d%22%22+ColSpan%3d%22%22+Format%3d%22General%22+Width%3d%2224.75%22+Text%3d%222000%22+Height%3d%2215%22+Align%3d%22Left%22+CellHasFormula%3d%22False%22+FontName%3d%22Calibri%22+WrapText%3d%22False%22+FontSize%3d%2211%22+X%3d%224%22+Y%3d%2220%22+%2f%3e%0d%0a++++++%3cTD+Style%3d%22Class53%22+Merge%3d%22False%22+RowSpan%3d%22%22+ColSpan%3d%22%22+Format%3d%22General%22+Width%3d%2224.75%22+Text%3d%22%22+Height%3d%2215%22+Align%3d%22Left%22+CellHasFormula%3d%22False%22+FontName%3d%22Calibri%22+WrapText%3d%22False%22+FontSize%3d%2211%22+X%3d%225%22+Y%3d%2220%22+%2f%3e%0d%0a++++++%3cTD+Style%3d%22Class53%22+Merge%3d%22False%22+RowSpan%3d%22%22+ColSpan%3d%22%22+Format%3d%22General%22+Width%3d%2224.75%22+Text%3d%22%22+Height%3d%2215%22+Align%3d%22Left%22+CellHasFormula%3d%22False%22+FontName%3d%22Calibri%22+WrapText%3d%22False%22+FontSize%3d%2211%22+X%3d%226%22+Y%3d%2220%22+%2f%3e%0d%0a++++++%3cTD+Style%3d%22Class53%22+Merge%3d%22False%22+RowSpan%3d%22%22+ColSpan%3d%22%22+Format%3d%22General%22+Width%3d%2224.75%22+Text%3d%22%22+Height%3d%2215%22+Align%3d%22Left%22+CellHasFormula%3d%22False%22+FontName%3d%22Calibri%22+WrapText%3d%22False%22+FontSize%3d%2211%22+X%3d%227%22+Y%3d%2220%22+%2f%3e%0d%0a++++++%3cTD+Style%3d%22Class53%22+Merge%3d%22False%22+RowSpan%3d%22%22+ColSpan%3d%22%22+Format%3d%22General%22+Width%3d%2224.75%22+Text%3d%22%22+Height%3d%2215%22+Align%3d%22Left%22+CellHasFormula%3d%22False%22+FontName%3d%22Calibri%22+WrapText%3d%22False%22+FontSize%3d%2211%22+X%3d%228%22+Y%3d%2220%22+%2f%3e%0d%0a++++++%3cTD+Style%3d%22Class53%22+Merge%3d%22False%22+RowSpan%3d%22%22+ColSpan%3d%22%22+Format%3d%22General%22+Width%3d%2224.75%22+Text%3d%22%22+Height%3d%2215%22+Align%3d%22Left%22+CellHasFormula%3d%22False%22+Font"}},{"$cut":{"chars":32761,"head":" 22+WrapText%3d%22False%22+FontSize%3d%2211%22+X%3d%223%22+Y%3d%2223%22%3e%0d%0a++++++++%3cFormControl%3e%0d%0a++++++++++%3cWidth%3e30%3c%2fWidth%3e%0d%0a++++++++++%3cHeight%3e17.25%3c%2fHeight%3e%0d%0a++++++++++%3cLeft%3e75%3c%2fLeft%3e%0d%0a++++++++++%3cTop%3e346.5%3c%2fTop%3e%0d%0a++++++++++%3cNameIndex%3e1%3c%2fNameIndex%3e%0d%0a++++++++++%3cChecked%3efalse%3c%2fChecked%3e%0d%0a++++++++++%3cLabel+%2f%3e%0d%0a++++++++++%3cValue%3e5%3c%2fValue%3e%0d%0a++++++++++%3cType%3eOptionButton%3c%2fType%3e%0d%0a++++++++%3c%2fFormControl%3e%0d%0a++++++%3c%2fTD%3e%0d%0a++++++%3cTD+Style%3d%22Class59%22+Merge%3d%22False%22+RowSpan%3d%22%22+ColSpan%3d%22%22+Format%3d%22General%22+Width%3d%2224.75%22+Text%3d%222003%22+Height%3d%2215%22+Align%3d%22Left%22+CellHasFormula%3d%22False%22+FontName%3d%22Calibri%22+WrapText%3d%22False%22+FontSize%3d%2211%22+X%3d%224%22+Y%3d%2223%22+%2f%3e%0d%0a++++++%3cTD+Style%3d%22Class58%22+Merge%3d%22False%22+RowSpan%3d%22%22+ColSpan%3d%22%22+Format%3d%22General%22+Width%3d%2224.75%22+Text%3d%22%22+Height%3d%2215%22+Align%3d%22Left%22+CellHasFormula%3d%22False%22+FontName%3d%22Calibri%22+WrapText%3d%22False%22+FontSize%3d%2211%22+X%3d%225%22+Y%3d%2223%22+%2f%3e%0d%0a++++++%3cTD+Style%3d%22Class58%22+Merge%3d%22False%22+RowSpan%3d%22%22+ColSpan%3d%22%22+Format%3d%22General%22+Width%3d%2224.75%22+Text%3d%22%22+Height%3d%2215%22+Align%3d%22Left%22+CellHasFormula%3d%22False%22+FontName%3d%22Calibri%22+WrapText%3d%22False%22+FontSize%3d%2211%22+X%3d%226%22+Y%3d%2223%22+%2f%3e%0d%0a++++++%3cTD+Style%3d%22Class58%22+Merge%3d%22False%22+RowSpan%3d%22%22+ColSpan%3d%22%22+Format%3d%22General%22+Width%3d%2224.75%22+Text%3d%22%22+Height%3d%2215%22+Align%3d%22Left%22+CellHasFormula%3d%22False%22+FontName%3d%22Calibri%22+WrapText%3d%22False%22+FontSize%3d%2211%22+X%3d%227%22+Y%3d%2223%22+%2f%3e%0d%0a++++++%3cTD+Style%3d%22Class53%22+Merge%3d%22False%22+RowSpan%3d%22%22+ColSpan%3d%22%22+Format%3d%22General%22+Width%3d%2224.75%22+Text%3d%22%22+Height%3d%2215%22+Align%3d%22Left%22+CellHasFormula%3d%22False%22+FontName%3d%22Calibri%22+WrapText%3d%22False%22+FontSize%3d%2211%22+X%3d%228%22+Y%3d%2223%22+%2f%3e%0d%0a++++++%3cTD+Style%3d%22Class53%22+Merge%3d%22False%22+RowSpan%3d%22%22+ColSpan%3d%22%22+Format%3d%22General%22+Width%3d%2224.75%22+Text%3d%22%22+Height%3d%2215%22+Align%3d%22Left%22+CellHasFormula%3d%22False%22+FontName%3d%22Calibri%22+WrapText%3d%22False%22+FontSize%3d%2211%22+X%3d%229%22+Y%3d%2223%22+%2f%3e%0d%0a++++++%3cTD+Style%3d%22Class53%22+Merge%3d%22False%22+RowSpan%3d%22%22+ColSpan%3d%22%22+Format%3d%22General%22+Width%3d%2224.75%22+Text%3d%22%22+Height%3d%2215%22+Align%3d%22Left%22+CellHasFormula%3d%22False%22+FontName%3d%22Calibri%22+WrapText%3d%22False%22+FontSize%3d%2211%22+X%3d%2210%22+Y%3d%2223%22+%2f%3e%0d%0a++++++%3cTD+Style%3d%22Class53%22+Merge%3d%22False%22+RowSpan%3d%22%22+ColSpan%3d%22%22+Format%3d%22General%22+Width%3d%2224.75%22+Text%3d%22%22+Height%3d%2215%22+Align%3d%22Left%22+CellHasFormula%3d%22False%22+FontName%3d%22Calibri%22+WrapText%3d%22False%22+FontSize%3d%2211%22+X%3d%2211%22+Y%3d%2223%22+%2f%3e%0d%0a++++++%3cTD+Style%3d%22Class53%22+Merge%3d%22False%22+RowSpan%3d%22%22+ColSpan%3d%22%22+Format%3d%22General%22+Width%3d%2224.75%22+Text%3d%22%22+Height%3d%2215%22+Align%3d%22Left%22+CellHasFormula%3d%22False%22+FontName%3d%22Calibri%22+WrapText%3d%22False%22+FontSize%3d%2211%22+X%3d%2212%22+Y%3d%2223%22+%2f%3e%0d%0a++++++%3cTD+Style%3d%22Class53%22+Merge%3d%22False%22+RowSpan%3d%22%22+ColSpan%3d%22%22+Format%3d%22General%22+Width%3d%2224.75%22+Text%3d%22%22+Height%3d%2215%22+Align%3d%22Left%22+CellHasFormula%3d%22False%22+FontName%3d%22Calibri%22+WrapText%3d%22False%22+FontSize%3d%2211%22+X%3d%2213%22+Y%3d%2223%22+%2f%3e%0d%0a++++++%3cTD+Style%3d%22Class53%22+Merge%3d%22False%22+RowSpan%3d%22%22+ColSpan%3d%22%22+Format%3d%22General%22+Width%3d%2224.75%22+Text%3d%22%22+Height%3d%2215%22+Align%3d%22Left%22+CellHasFormula%3d%22False%22+FontName%3d%22Calibri%22+WrapText%3d%22False%22+FontSize%3d%2211%22+X%3d%2214%22+Y%3d%2223%22+%2f%3e%0d%0a++++++%3cTD+Style%3d%22Class53%22+Merge%3d%22"}},{"$cut":{"chars":32761,"head":" ntName%3d%22Calibri%22+WrapText%3d%22False%22+FontSize%3d%2211%22+X%3d%227%22+Y%3d%2226%22+%2f%3e%0d%0a++++++%3cTD+Style%3d%22Class53%22+Merge%3d%22False%22+RowSpan%3d%22%22+ColSpan%3d%22%22+Format%3d%22General%22+Width%3d%2224.75%22+Text%3d%22%22+Height%3d%2215%22+Align%3d%22Left%22+CellHasFormula%3d%22False%22+FontName%3d%22Calibri%22+WrapText%3d%22False%22+FontSize%3d%2211%22+X%3d%228%22+Y%3d%2226%22+%2f%3e%0d%0a++++++%3cTD+Style%3d%22Class53%22+Merge%3d%22False%22+RowSpan%3d%22%22+ColSpan%3d%22%22+Format%3d%22General%22+Width%3d%2224.75%22+Text%3d%22%22+Height%3d%2215%22+Align%3d%22Left%22+CellHasFormula%3d%22False%22+FontName%3d%22Calibri%22+WrapText%3d%22False%22+FontSize%3d%2211%22+X%3d%229%22+Y%3d%2226%22+%2f%3e%0d%0a++++++%3cTD+Style%3d%22Class53%22+Merge%3d%22False%22+RowSpan%3d%22%22+ColSpan%3d%22%22+Format%3d%22General%22+Width%3d%2224.75%22+Text%3d%22%22+Height%3d%2215%22+Align%3d%22Left%22+CellHasFormula%3d%22False%22+FontName%3d%22Calibri%22+WrapText%3d%22False%22+FontSize%3d%2211%22+X%3d%2210%22+Y%3d%2226%22+%2f%3e%0d%0a++++++%3cTD+Style%3d%22Class53%22+Merge%3d%22False%22+RowSpan%3d%22%22+ColSpan%3d%22%22+Format%3d%22General%22+Width%3d%2224.75%22+Text%3d%22%22+Height%3d%2215%22+Align%3d%22Left%22+CellHasFormula%3d%22False%22+FontName%3d%22Calibri%22+WrapText%3d%22False%22+FontSize%3d%2211%22+X%3d%2211%22+Y%3d%2226%22+%2f%3e%0d%0a++++++%3cTD+Style%3d%22Class53%22+Merge%3d%22False%22+RowSpan%3d%22%22+ColSpan%3d%22%22+Format%3d%22General%22+Width%3d%2224.75%22+Text%3d%22%22+Height%3d%2215%22+Align%3d%22Left%22+CellHasFormula%3d%22False%22+FontName%3d%22Calibri%22+WrapText%3d%22False%22+FontSize%3d%2211%22+X%3d%2212%22+Y%3d%2226%22+%2f%3e%0d%0a++++++%3cTD+Style%3d%22Class53%22+Merge%3d%22False%22+RowSpan%3d%22%22+ColSpan%3d%22%22+Format%3d%22General%22+Width%3d%2224.75%22+Text%3d%22%22+Height%3d%2215%22+Align%3d%22Left%22+CellHasFormula%3d%22False%22+FontName%3d%22Calibri%22+WrapText%3d%22False%22+FontSize%3d%2211%22+X%3d%2213%22+Y%3d%2226%22+%2f%3e%0d%0a++++++%3cTD+Style%3d%22Class53%22+Merge%3d%22False%22+RowSpan%3d%22%22+ColSpan%3d%22%22+Format%3d%22General%22+Width%3d%2224.75%22+Text%3d%22%22+Height%3d%2215%22+Align%3d%22Left%22+CellHasFormula%3d%22False%22+FontName%3d%22Calibri%22+WrapText%3d%22False%22+FontSize%3d%2211%22+X%3d%2214%22+Y%3d%2226%22+%2f%3e%0d%0a++++++%3cTD+Style%3d%22Class53%22+Merge%3d%22False%22+RowSpan%3d%22%22+ColSpan%3d%22%22+Format%3d%22General%22+Width%3d%2224.75%22+Text%3d%22%22+Height%3d%2215%22+Align%3d%22Left%22+CellHasFormula%3d%22False%22+FontName%3d%22Calibri%22+WrapText%3d%22False%22+FontSize%3d%2211%22+X%3d%2215%22+Y%3d%2226%22+%2f%3e%0d%0a++++++%3cTD+Style%3d%22Class53%22+Merge%3d%22False%22+RowSpan%3d%22%22+ColSpan%3d%22%22+Format%3d%22General%22+Width%3d%2224.75%22+Text%3d%22%22+Height%3d%2215%22+Align%3d%22Left%22+CellHasFormula%3d%22False%22+FontName%3d%22Calibri%22+WrapText%3d%22False%22+FontSize%3d%2211%22+X%3d%2216%22+Y%3d%2226%22+%2f%3e%0d%0a++++++%3cTD+Style%3d%22Class53%22+Merge%3d%22False%22+RowSpan%3d%22%22+ColSpan%3d%22%22+Format%3d%22General%22+Width%3d%2224.75%22+Text%3d%22%22+Height%3d%2215%22+Align%3d%22Left%22+CellHasFormula%3d%22False%22+FontName%3d%22Calibri%22+WrapText%3d%22False%22+FontSize%3d%2211%22+X%3d%2217%22+Y%3d%2226%22+%2f%3e%0d%0a++++++%3cTD+Style%3d%22Class53%22+Merge%3d%22False%22+RowSpan%3d%22%22+ColSpan%3d%22%22+Format%3d%22General%22+Width%3d%2224.75%22+Text%3d%22%22+Height%3d%2215%22+Align%3d%22Left%22+CellHasFormula%3d%22False%22+FontName%3d%22Calibri%22+WrapText%3d%22False%22+FontSize%3d%2211%22+X%3d%2218%22+Y%3d%2226%22+%2f%3e%0d%0a++++++%3cTD+Style%3d%22Class53%22+Merge%3d%22False%22+RowSpan%3d%22%22+ColSpan%3d%22%22+Format%3d%22General%22+Width%3d%2224.75%22+Text%3d%22%22+Height%3d%2215%22+Align%3d%22Left%22+CellHasFormula%3d%22False%22+FontName%3d%22Calibri%22+WrapText%3d%22False%22+FontSize%3d%2211%22+X%3d%2219%22+Y%3d%2226%22+%2f%3e%0d%0a++++++%3cTD+Style%3d%22Class53%22+Merge%3d%22False%22+RowSpan%3d%22%22+ColSpan%3d%22%22+Format%3d%22General%22+Width%3d%2224.75%22+Text%3d%22%22+Height%3d%2215%22+Align%3d%22Left%22+CellHasF"}},{"$cut":{"chars":25265,"head":" tName%3d%22Calibri%22+WrapText%3d%22False%22+FontSize%3d%2211%22+X%3d%2214%22+Y%3d%2229%22+%2f%3e%0d%0a++++++%3cTD+Style%3d%22Class53%22+Merge%3d%22False%22+RowSpan%3d%22%22+ColSpan%3d%22%22+Format%3d%22General%22+Width%3d%2224.75%22+Text%3d%22%22+Height%3d%2215%22+Align%3d%22Left%22+CellHasFormula%3d%22False%22+FontName%3d%22Calibri%22+WrapText%3d%22False%22+FontSize%3d%2211%22+X%3d%2215%22+Y%3d%2229%22+%2f%3e%0d%0a++++++%3cTD+Style%3d%22Class53%22+Merge%3d%22False%22+RowSpan%3d%22%22+ColSpan%3d%22%22+Format%3d%22General%22+Width%3d%2224.75%22+Text%3d%22%22+Height%3d%2215%22+Align%3d%22Left%22+CellHasFormula%3d%22False%22+FontName%3d%22Calibri%22+WrapText%3d%22False%22+FontSize%3d%2211%22+X%3d%2216%22+Y%3d%2229%22+%2f%3e%0d%0a++++++%3cTD+Style%3d%22Class53%22+Merge%3d%22False%22+RowSpan%3d%22%22+ColSpan%3d%22%22+Format%3d%22General%22+Width%3d%2224.75%22+Text%3d%22%22+Height%3d%2215%22+Align%3d%22Left%22+CellHasFormula%3d%22False%22+FontName%3d%22Calibri%22+WrapText%3d%22False%22+FontSize%3d%2211%22+X%3d%2217%22+Y%3d%2229%22+%2f%3e%0d%0a++++++%3cTD+Style%3d%22Class53%22+Merge%3d%22False%22+RowSpan%3d%22%22+ColSpan%3d%22%22+Format%3d%22General%22+Width%3d%2224.75%22+Text%3d%22%22+Height%3d%2215%22+Align%3d%22Left%22+CellHasFormula%3d%22False%22+FontName%3d%22Calibri%22+WrapText%3d%22False%22+FontSize%3d%2211%22+X%3d%2218%22+Y%3d%2229%22+%2f%3e%0d%0a++++++%3cTD+Style%3d%22Class53%22+Merge%3d%22False%22+RowSpan%3d%22%22+ColSpan%3d%22%22+Format%3d%22General%22+Width%3d%2224.75%22+Text%3d%22%22+Height%3d%2215%22+Align%3d%22Left%22+CellHasFormula%3d%22False%22+FontName%3d%22Calibri%22+WrapText%3d%22False%22+FontSize%3d%2211%22+X%3d%2219%22+Y%3d%2229%22+%2f%3e%0d%0a++++++%3cTD+Style%3d%22Class53%22+Merge%3d%22False%22+RowSpan%3d%22%22+ColSpan%3d%22%22+Format%3d%22General%22+Width%3d%2224.75%22+Text%3d%22%22+Height%3d%2215%22+Align%3d%22Left%22+CellHasFormula%3d%22False%22+FontName%3d%22Calibri%22+WrapText%3d%22False%22+FontSize%3d%2211%22+X%3d%2220%22+Y%3d%2229%22+%2f%3e%0d%0a++++++%3cTD+Style%3d%22Class53%22+Merge%3d%22False%22+RowSpan%3d%22%22+ColSpan%3d%22%22+Format%3d%22General%22+Width%3d%2224.75%22+Text%3d%22%22+Height%3d%2215%22+Align%3d%22Left%22+CellHasFormula%3d%22False%22+FontName%3d%22Calibri%22+WrapText%3d%22False%22+FontSize%3d%2211%22+X%3d%2221%22+Y%3d%2229%22+%2f%3e%0d%0a++++++%3cTD+Style%3d%22Class53%22+Merge%3d%22False%22+RowSpan%3d%22%22+ColSpan%3d%22%22+Format%3d%22General%22+Width%3d%2224.75%22+Text%3d%22%22+Height%3d%2215%22+Align%3d%22Left%22+CellHasFormula%3d%22False%22+FontName%3d%22Calibri%22+WrapText%3d%22False%22+FontSize%3d%2211%22+X%3d%2222%22+Y%3d%2229%22+%2f%3e%0d%0a++++++%3cTD+Style%3d%22Class53%22+Merge%3d%22False%22+RowSpan%3d%22%22+ColSpan%3d%22%22+Format%3d%22General%22+Width%3d%2224.75%22+Text%3d%22%22+Height%3d%2215%22+Align%3d%22Left%22+CellHasFormula%3d%22False%22+FontName%3d%22Calibri%22+WrapText%3d%22False%22+FontSize%3d%2211%22+X%3d%2223%22+Y%3d%2229%22+%2f%3e%0d%0a++++++%3cTD+Style%3d%22Class53%22+Merge%3d%22False%22+RowSpan%3d%22%22+ColSpan%3d%22%22+Format%3d%22General%22+Width%3d%2224.75%22+Text%3d%22%22+Height%3d%2215%22+Align%3d%22Left%22+CellHasFormula%3d%22False%22+FontName%3d%22Calibri%22+WrapText%3d%22False%22+FontSize%3d%2211%22+X%3d%2224%22+Y%3d%2229%22+%2f%3e%0d%0a++++++%3cTD+Style%3d%22Class53%22+Merge%3d%22False%22+RowSpan%3d%22%22+ColSpan%3d%22%22+Format%3d%22General%22+Width%3d%2224.75%22+Text%3d%22%22+Height%3d%2215%22+Align%3d%22Left%22+CellHasFormula%3d%22False%22+FontName%3d%22Calibri%22+WrapText%3d%22False%22+FontSize%3d%2211%22+X%3d%2225%22+Y%3d%2229%22+%2f%3e%0d%0a++++++%3cTD+Style%3d%22Class53%22+Merge%3d%22False%22+RowSpan%3d%22%22+ColSpan%3d%22%22+Format%3d%22General%22+Width%3d%2224.75%22+Text%3d%22%22+Height%3d%2215%22+Align%3d%22Left%22+CellHasFormula%3d%22False%22+FontName%3d%22Calibri%22+WrapText%3d%22False%22+FontSize%3d%2211%22+X%3d%2226%22+Y%3d%2229%22+%2f%3e%0d%0a++++++%3cTD+Style%3d%22Class53%22+Merge%3d%22False%22+RowSpan%3d%22%22+ColSpan%3d%22%22+Format%3d%22General%22+Width%3d%2224.75%22+Text%3d%22%22+Height%3d%2215%22+Align%3d%22Left%22+CellHa"}}]
["%3c%3fxml+version%3d%221.0%22+encoding%3d%22utf-16%22%3f%3e%0d%0a%3cPageLayouts+xmlns%3axsi%3d%22http%3a%2f%2fwww.w3.org%2f2001%2fXMLSchema-instance%22+xmlns%3axsd%3d%22http%3a%2f%2fwww.w3.org%2f2001%2fXMLSchema%22+IsTabsVisible%3d%22true%22+InitialPageIndex%3d%220%22%3e%0d%0a++%3cPageLayout+Index%3d%220%22+IsPageHidingEnabled%3d%22false%22+Order%3d%220%22+FileName%3d%221.+Enrollment+Dashbo%22+IsAjaxEnabled%3d%22false%22+Recipient%3d%22Enter+e-mail+address+here.%22+Location%3d%22Bottom%22+Alignment%3d%22Center%22+AutoResponseEmail%3d%22False%22+NotificationEmail%3d%22False%22+PageForwarding%3d%22False%22+PageForwardingCustomPage%3d%22False%22+PageForwardingIsExternalURL%3d%22False%22+PageForwardingExternalURL%3d%22None%22%3e%0d%0a++++%3cControls%3e%0d%0a++++++%3cPageControl+Enabled%3d%22true%22+Type%3d%22Calculate%22+Order%3d%220%22+CellLink%3d%22DEFAULT%22+Name%3d%22Calculate%22+%2f%3e%0d%0a++++++%3cPageControl+Enabled%3d%22false%22+Type%3d%22Reset%22+Order%3d%221%22+CellLink%3d%22DEFAULT%22+Name%3d%22Reset%22+%2f%3e%0d%0a++++++%3cPageControl+Enabled%3d%22false%22+Type%3d%22Send+Results%22+Order%3d%222%22+CellLink%3d%22DEFAULT%22+Name%3d%22Submit%22+%2f%3e%0d%0a++++++%3cPageControl+Enabled%3d%22false%22+Type%3d%22Save%22+Order%3d%223%22+CellLink%3d%22DEFAULT%22+Name%3d%22Save%22+%2f%3e%0d%0a++++++%3cPageControl+Enabled%3d%22false%22+Type%3d%22Back%22+Order%3d%225%22+CellLink%3d%22DEFAULT%22+Name%3d%22Back%22+%2f%3e%0d%0a++++++%3cPageControl+Enabled%3d%22false%22+Type%3d%22Next%22+Order%3d%224%22+CellLink%3d%22DEFAULT%22+Name%3d%22Next%22+%2f%3e%0d%0a++++%3c%2fControls%3e%0d%0a++%3c%2fPageLayout%3e%0d%0a++%3cApplicationName%3eEnrollment+Dashboard+(Online)2%3c%2fApplicationName%3e%0d%0a%3c%2fPageLayouts%3e"]
["\n.Class53{font-family: Calibri; font-size:11pt; color:Black;border: 0.5pt  None  Black ;background-color:White; text-align:left;vertical-align:bottom;}\n.Class54{font-family: Times New Roman; font-size:14pt; color:#4F6228;font-weight: bold;border: 0.5pt  None  Black ;background-color:White; text-align:center;vertical-align:middle;}\n.Class55{font-family: Times New Roman; font-size:14pt; color:#4F6228;font-weight: bold;border: 0.5pt  None  Black ;background-color:White; text-align:left;vertical-align:bottom;}\n.Class56{font-family: Calibri; font-size:12pt; color:#4F6228;font-weight: bold;border-bottom-style: Solid ;border-top-width: 0.5pt ;border-left-width: 0.5pt ;border-right-width: 0.5pt ;border-bottom-width: 1.5pt ;border-top-color: Black ;border-left-color: Black ;border-right-color: Black ;border-bottom-color: #4F6228 ;background-color:White; text-align:center;vertical-align:middle;}\n.Class57{font-family: Calibri; font-size:11pt; color:Black;border-top-style: Solid ;border-top-width: 1.5pt ;border-left-width: 0.5pt ;border-right-width: 0.5pt ;border-bottom-width: 0.5pt ;border-top-color: #4F6228 ;border-left-color: Black ;border-right-color: Black ;border-bottom-color: Black ;background-color:White; text-align:left;vertical-align:bottom;}\n.Class58{font-family: Calibri; font-size:11pt; color:Black;border: 0.5pt  None  Black ;background-color:#EAF1DD; text-align:left;vertical-align:bottom;}\n.Class59{font-family: Calibri; font-size:11pt; color:Black;border: 0.5pt  None  Black ;background-color:#EAF1DD; text-align:right;vertical-align:bottom;}\n.Class60{font-family: Calibri; font-size:11pt; color:Black;border: 0.5pt  None  Black ;background-color:White; text-align:right;vertical-align:bottom;}"]
["tr-TR"]
["2.0.0.0"]
[]
["UEsFBgAAAAAAAAAAAAAAAAAAAAAAAA%3d%3d"]
[]
[]
["%3c%3fxml+version%3d%221.0%22+encoding%3d%22utf-16%22%3f%3e%0d%0a%3cSavingCells+xmlns%3axsi%3d%22http%3a%2f%2fwww.w3.org%2f2001%2fXMLSchema-instance%22+xmlns%3axsd%3d%22http%3a%2f%2fwww.w3.org%2f2001%2fXMLSchema%22+CellCount%3d%220%22+SavingCellPrefix%3d%22PSWSavingCell_%22+%2f%3e"]